Cogmind - Beta 15 @@@ ROGUE MODE // 2025.08.12 @ 02:01:34 Player: BVrutally Odd Result: Escaped! Performance ------------- Evolutions (9) 4500 Regions Visited (33) 6600 Robots Destroyed (659) 3295 Value Destroyed (33038) 33038 Prototype IDs (42) 840 Alien Tech Used (0) 0 Bonus (22073) 22073 TOTAL SCORE: 70346 Bonus ------- High Alert Combat Kills 9571 Follower Combat Kills 1833 Entered Garrisons 2000 Used RIF Installer 5500 Aligned with FarCom 300 Win 3000 Friendly Fire -131 Cogmind --------- Core Integrity 535/1600 Matter 363/550 Energy 348/355 System Corruption 94% Temperature Cool (3) Movement Treading (240) Ox1 Location To Epsilon Eridani Parts ------- > --- POWER (3) -------- Improved Ion Engine Light Quantum Reactor > --- PROPULSION (6) --- Enhanced Armored Heavy Treads Biometal Leg > --- UTILITY (12) ----- Advanced Coolant Injector Huge Storage Unit Matter Compressor Structural Scanner Microactuators Graphene Brace Relay Coupler [Grunt] (34) > --- WEAPON (4) ------- KE Penetrator KE Penetrator Enhanced Hardcell Cannon Advanced Remote Datajack > --- INVENTORY (25) --- Relay Coupler [NC] (27) Relay Coupler [Swarmer] (30) Field Recycling Unit (0) Heavy Laser Heavy Machine Gun KE Penetrator Enhanced Hardcell Cannon Peak State ------------ > --- POWER ------------ Micro Antimatter Reactor Light Quantum Reactor Light Quantum Reactor > --- PROPULSION ------- Armored Heavy Treads Biometal Heavy Treads Advanced Heavy Siege Treads > --- UTILITY ---------- Improved Thermal Generator Advanced Heat Sink Advanced Heat Sink Improved Cooling System Huge Storage Unit Machine Analyzer Experimental Targeting Computer Advanced Target Analyzer Improved Armor Integrity Analyzer Advanced Weapon Cycler Graphene Brace Advanced Force Field > --- WEAPON ----------- Enhanced Nova Cannon Hypervelocity Railgun Multirail Multirail > --- INVENTORY -------- Quantum Reactor Light Quantum Reactor Light Quantum Reactor Biometal Heavy Treads Biometal Heavy Treads Advanced Coolant Injector Matter Compressor Improved Utility Shielding Relay Coupler [NC] Relay Coupler [Swarmer] Relay Coupler [Grunt] Relay Coupler [Grunt] High-powered Tractor Beam Heavy Dispersion Rifle Railgun Railgun Hypervelocity Railgun Hypervelocity Railgun Gamma Bomb Array Gamma Bomb Array Fusion Bomb Launcher Advanced Remote Datajack [Rating: 203] Favorites ----------- Power Quantum Reactor Engine Light Ion Engine Power Core Micro Nuclear Core Reactor Quantum Reactor Propulsion Light Treads Treads Light Treads Leg Biometal Leg Wheel Compact Wheel Utility Advanced Targeting Computer Device Advanced Weapon Cycler Storage Huge Storage Unit Processor Advanced Targeting Computer Hackware Relay Coupler [NC] Protection Improved Medium Armor Plating Weapon KE Penetrator Energy Gun Medium Laser Energy Cannon Improved EM Pulse Cannon Ballistic Gun KE Penetrator Ballistic Cannon Flak Cannon Launcher Improved Grenade Launcher Special Weapon Advanced Remote Datajack Impact Weapon Great Maul Slashing Weapon Power Sword Build | -11 -10 -9 -9 -9 -8 -8 -8 -8 -8 -7 -7 -7 -7 -6 -6 -6 -6 -6 -6 -5 -5 -5 -5 -4 -4 -4 -4 -3 -3 -3 -2 -2 -1 ------- Run | Yrd Mat Mat Min Exi Min Mat Gar Mat Gar Fac Gar Fac Gar Fac Was Fac Gar Fac Gar Fac Gar Fac Gar Fac Was Fac Gar Res Arm Lab Res Gar Acc Slots Evolved 18 | . . 2 . . . 2 . . . 2 . . . 2 . . . . . 2 . . . 2 . . . 2 . . 2 . 2 Power 2 | . . . . . . . . . . . . . . . . . . . . 1 . . . . . . . . . . . . 1 Propulsion 4 | . . 1 . . . . . . . 1 . . . . . . . . . . . . . . . . . 2 . . . . . Utility 10 | . . 1 . . . 2 . . . . . . . 1 . . . . . 1 . . . 2 . . . . . . 2 . 1 Weapon 2 | . . . . . . . . . . 1 . . . 1 . . . . . . . . . . . . . . . . . . . Parts Attached 331 | 7 2 22 1 2 4 30 13 1 5 7 11 6 7 9 3 . 19 . 10 7 18 13 1 . 4 14 20 6 17 . 3 4 65 Power 48 | 1 . 1 . . . 3 2 . . 1 1 2 . . 2 . 3 . 2 3 1 2 . . 2 1 6 . 2 . . . 13 Engine 14 | 1 . 1 . . . 3 1 . . . . 2 . . . . 1 . 1 1 . . . . . 1 . . . . . . 2 Core 9 | . . . . . . . 1 . . 1 1 . . . . . . . 1 1 . 1 . . 1 . 2 . . . . . . Reactor 25 | . . . . . . . . . . . . . . . 2 . 2 . . 1 1 1 . . 1 . 4 . 2 . . . 11 Propulsion 73 | 2 . 8 . 2 . 13 4 . 2 2 3 1 . 2 . . 2 . 4 . 2 3 . . . 1 2 1 . . 2 . 17 Treads 53 | 2 . 8 . . . 12 2 . 1 . 3 . . 2 . . 2 . 4 . 2 3 . . . 1 2 1 . . 2 . 6 Leg 5 | . . . . 2 . . . . . . . . . . . . . . . . . . . . . . . . . . . . 3 Wheel 15 | . . . . . . 1 2 . 1 2 . 1 . . . . . . . . . . . . . . . . . . . . 8 Hover . | . . . . . . . . . . . . . . . . . . . . . . . . . . . . . . . . . . Flight . | . . . . . . . . . . . . . . . . . . . . . . . . . . . . . . . . . . Utility 116 | 2 1 3 . . 1 10 4 1 . 2 4 2 3 4 1 . 7 . 2 1 8 5 1 . 2 9 7 2 5 . . 3 26 Device 51 | 1 . . . . 1 2 . . . . . 1 1 2 . . 4 . 1 . 2 2 . . . 7 4 1 4 . . 2 16 Storage 5 | 1 1 . . . . . . . . . . . . . . . . . . . . 1 . . . . . . . . . 1 1 Processor 14 | . . . . . . 3 1 . . 2 . . . . . . . . . . 2 1 . . . 1 . . 1 . . . 3 Hackware 24 | . . . . . . . 1 1 . . 3 . 2 2 1 . 2 . 1 . 2 1 . . 1 1 1 1 . . . . 4 Protection 22 | . . 3 . . . 5 2 . . . 1 1 . . . . 1 . . 1 2 . 1 . 1 . 2 . . . . . 2 Artifact . | . . . . . . . . . . . . . . . . . . . . . . . . . . . . . . . . . . Weapon 94 | 2 1 10 1 . 3 4 3 . 3 2 3 1 4 3 . . 7 . 2 3 7 3 . . . 3 5 3 10 . 1 1 9 Energy Gun 15 | 2 . 2 . . . . . . 3 1 . . . . . . . . 1 2 1 1 . . . . . 1 . . . . 1 Energy Cannon 10 | . . 1 . . . 1 1 . . . . 1 . 1 . . 1 . . 1 1 . . . . . . . 2 . . . . Ballistic Gun 41 | . . 5 1 . 2 1 . . . . . . 3 1 . . 3 . 1 . 3 . . . . 3 4 1 6 . . 1 6 Ballistic Cannon 6 | . . . . . . 1 . . . . . . . 1 . . 1 . . . 1 . . . . . 1 . . . . . 1 Launcher 10 | . 1 1 . . 1 . 1 . . . . . 1 . . . 1 . . . . . . . . . . 1 2 . . . 1 Special Weapon 6 | . . . . . . . 1 . . . 1 . . . . . 1 . . . 1 1 . . . . . . . . 1 . . Impact Weapon 1 | . . 1 . . . . . . . . . . . . . . . . . . . . . . . . . . . . . . . Slashing Weapon 5 | . . . . . . 1 . . . 1 2 . . . . . . . . . . 1 . . . . . . . . . . . Piercing Weapon . | . . . . . . . . . . . . . . . . . . . . . . . . . . . . . . . . . . Special Melee Weapon . | . . . . . . . . . . . . . . . . . . . . . . . . . . . . . . . . . . Unidentified Prototypes 16 | . . 2 . . . . . . . 1 . 1 . 1 . . . . 1 1 . 1 . . . 2 . 2 . . . . 4 Corrupted Parts 7 | . . . . . . . . . . . . . . . . . 1 . . . . . . . . . . . . . . . 6 System Corruption 55 | . . . . . . . . . . . . . . . . . 2 . . . . . . . . . . . . . . . 53 Parts Lost 105 | . . 3 . . 1 1 5 . 4 . 2 . . 2 . . 9 . 2 . 1 4 . . . . 4 1 4 . . 1 61 Power 19 | . . . . . . 1 2 . . . . . . . . . 2 . . . . 1 . . . . 1 . 1 . . . 11 Propulsion 27 | . . . . . . . 1 . 2 . 2 . . 2 . . 2 . 1 . . 1 . . . . 1 . . . . . 15 Utility 35 | . . 2 . . 1 . 1 . . . . . . . . . 3 . . . . 1 . . . . 2 1 2 . . 1 21 Weapon 24 | . . 1 . . . . 1 . 2 . . . . . . . 2 . 1 . 1 1 . . . . . . 1 . . . 14 Highest Loss Streak 17 | . . 1 . . 1 1 4 . 4 . 1 . . 2 . . 8 . 2 . 1 3 . . . . 2 1 2 . . 1 17 To Critical Strikes 1 | . . . . . . . . . . . . . . . . . 1 . . . . . . . . . . . . . . . . Average Backups 19 | . 5 20 25 23 21 21 21 21 21 20 20 21 21 20 20 19 18 20 20 18 18 18 20 21 22 19 19 19 19 20 20 20 17 Power 1 | . . . . . . . . . . . . . 1 1 1 1 1 2 2 1 1 2 3 3 3 2 2 3 1 2 2 2 2 Propulsion 4 | . 1 10 14 12 11 9 8 8 6 5 4 4 4 3 3 2 1 2 1 3 3 2 2 2 2 2 2 1 1 1 1 3 1 Utility 7 | . 1 2 2 2 1 4 6 7 7 8 10 11 10 9 10 11 9 9 8 8 9 9 9 11 12 10 9 9 8 8 7 6 6 Weapon 5 | . 2 7 9 9 9 8 6 5 6 5 5 5 5 4 4 4 4 6 7 5 3 2 4 4 4 3 4 4 7 8 8 8 6 Tool/Special . | . . . . . . . . . . . . . . . . . . . . . . . . . . . . . . . . . . Unused Backups 28 | . . 3 . . . 2 1 . 1 . 3 1 1 . . . 3 . 1 . 2 . . . . 1 3 . . . . . 6 Power 3 | . . . . . . . . . . . . . . . . . 2 . . . . . . . . . 1 . . . . . . Propulsion 3 | . . . . . . 1 . . . . . . . . . . . . . . . . . . . . 2 . . . . . . Utility 12 | . . . . . . . 1 . 1 . 3 1 1 . . . 1 . 1 . . . . . . . . . . . . . 3 Weapon 10 | . . 3 . . . 1 . . . . . . . . . . . . . . 2 . . . . 1 . . . . . . 3 Tool/Special . | . . . . . . . . . . . . . . . . . . . . . . . . . . . . . . . . . . Average Slot Usage (%) 88 | . 100 98 97 87 99 96 99 100 98 97 98 87 88 89 86 86 83 86 81 87 83 86 82 73 67 88 88 85 84 85 72 73 73 Engine 3 | . 14 11 11 11 11 8 5 . . . . 6 7 6 . . 2 . 1 5 1 . . . . 3 . . . . . . . Core 1 | . . . . . . . 2 9 9 7 7 . . . . . . . . 2 . . 5 5 3 . 3 . . . . . . Reactor 4 | . . . . . . . . . . . . . . . 5 6 3 6 4 2 9 10 5 5 6 6 6 9 9 9 8 8 10 Treads 16 | . 28 32 33 32 33 26 9 9 15 15 18 16 15 12 13 13 12 13 14 11 11 11 11 10 10 10 9 14 14 14 12 13 9 Wheel 3 | . . . . . . . 17 18 11 14 10 7 7 6 6 6 1 . . . . . . . . . . . . . . . 2 Device 10 | . 14 7 11 11 21 7 . . . . . . 3 5 6 6 4 13 13 11 11 10 11 10 . 14 20 21 19 19 13 16 20 Storage 6 | . 14 11 11 11 11 9 9 9 9 7 7 7 7 6 6 6 6 6 6 5 5 5 5 5 5 5 5 4 4 4 4 4 4 Processor 11 | . . . . . . 18 27 19 18 15 15 15 15 13 13 13 13 13 13 11 15 17 17 15 15 15 12 9 10 14 8 4 4 Hackware 3 | . . . . . . . . 16 11 7 3 . . 8 13 13 3 . 3 5 1 5 3 . 4 5 . 1 4 4 4 4 4 Protection 5 | . . 12 11 11 . 7 8 . 6 6 9 9 7 3 . . 8 6 2 4 4 . 1 5 4 5 6 4 2 . 3 4 1 Energy Gun 1 | . 27 9 . . . . . . 3 . . . . . . . . . 2 3 4 1 . . . . . . . . . 1 . Energy Cannon 1 | . . . . . . . . . . 4 2 5 5 5 6 6 5 . 2 . . 2 . . 3 . . . 1 4 2 . 1 Ballistic Gun 8 | . . 10 8 . 21 13 8 1 1 . . . 2 10 . . 7 13 6 6 6 15 8 6 . 15 19 17 16 14 13 14 9 Ballistic Cannon 1 | . . . . . . 2 1 4 1 . 5 7 5 1 6 6 2 6 3 5 . . 5 5 5 . . . . . . . . Slashing Weapon 3 | . . . . . . 1 5 8 5 12 7 7 6 5 4 6 5 1 2 4 3 . 2 . 3 3 . . . . . . . Peak Build Rating 203 | 7 7 17 17 32 20 35 39 37 36 42 43 52 52 66 62 63 87 82 84 101 113 114 109 109 122 119 144 160 166 164 175 182 203 Average Rating 80 | 5 7 13 16 14 19 31 35 35 33 38 40 48 51 58 59 62 71 81 76 95 107 111 107 109 117 114 129 154 154 164 172 180 153 On Entrance 75 | . 7 7 17 14 16 20 33 36 34 35 40 41 52 49 63 62 63 82 81 80 99 112 106 109 109 120 116 139 150 164 164 175 181 Naked Turns . | . . . . . . . . . . . . . . . . . . . . . . . . . . . . . . . . . . Heaviest Build 220 | 15 90 97 94 91 92 108 106 96 103 107 110 130 130 119 120 120 149 136 137 141 138 142 149 149 188 165 164 160 164 163 207 208 220 Greatest Support 235 | 40 40 60 60 60 60 60 24 24 24 32 32 28 40 28 28 28 140 140 150 150 150 150 150 150 150 150 160 235 235 235 235 230 230 Greatest Overweight (x) 9 | 2 2 2 1 4 1 1 5 3 8 8 6 7 4 4 4 4 4 . . . . . . . 1 1 1 . . . 1 . 9 Average Overweight (x) 1 | . . 1 1 1 1 1 3 3 6 3 4 4 3 3 4 4 1 . . . . . . . 1 . . . . . . . . Largest Inventory Capacity 25 | 8 25 25 25 25 25 25 25 25 25 25 25 25 25 25 25 25 25 25 25 25 25 25 25 25 25 25 25 25 25 25 25 25 25 Average Capacity 24 | 7 13 25 25 25 25 25 25 25 25 25 25 25 25 25 25 25 25 25 25 25 25 25 25 25 25 25 25 25 25 25 25 25 25 Most Carried 25 | 1 9 25 25 25 25 25 25 25 25 25 25 25 25 25 25 25 25 23 25 25 25 25 25 25 25 25 25 24 25 25 25 25 25 Average Carried 23 | . 5 20 25 24 24 24 24 24 24 24 24 24 24 24 24 25 22 23 24 24 24 24 24 25 23 24 24 23 24 25 22 24 19 Final Capacity 25 | 8 25 25 25 25 25 25 25 25 25 25 25 25 25 25 25 25 25 25 25 25 25 25 25 25 25 25 25 25 25 25 25 25 25 Final Carried 25 | 1 9 25 25 25 25 25 25 25 25 25 25 25 25 25 25 25 23 23 25 25 25 22 25 25 25 25 25 23 25 25 25 25 7 Class Distribution -------------------- 21% | Scavenger-Mutant 17% | Botlord-Tank 14% | Bothacker-Mutant 13% | Scavenger-Gunner 10% | Bothacker-Gunner 9% | Mutant 8% | Scavenger-Tank 3% | Botlord-Gunner Dominant Class ---------------- Mutant | -10/Materials Scavenger-Mutant | -9/Materials Scavenger-Mutant | -9/Mines Scavenger-Mutant | -9/Exiles Scavenger-Mutant | -8/Mines Scavenger-Mutant | -8/Materials Scavenger-Mutant | -8/Garrison Bothacker-Mutant | -8/Materials Mutant | -8/Garrison Mutant | -7/Factory Bothacker-Mutant | -7/Garrison Bothacker-Mutant | -7/Factory Bothacker-Mutant | -7/Garrison Bothacker-Gunner | -6/Factory Bothacker-Gunner | -6/Waste Bothacker-Gunner | -6/Factory Bothacker-Gunner | -6/Garrison Scavenger-Gunner | -6/Factory Scavenger-Gunner | -6/Garrison Scavenger-Gunner | -5/Factory Scavenger-Gunner | -5/Garrison Scavenger-Gunner | -5/Factory Botlord-Gunner | -5/Garrison Bothacker-Gunner | -4/Factory Bothacker-Gunner | -4/Waste Scavenger-Tank | -4/Factory Scavenger-Tank | -4/Garrison Botlord-Tank | -3/Research Botlord-Tank | -3/Armory Botlord-Gunner | -3/Lab Botlord-Tank | -2/Research Botlord-Tank | -2/Garrison Botlord-Tank | -1/Access Resources | -11 -10 -9 -9 -9 -8 -8 -8 -8 -8 -7 -7 -7 -7 -6 -6 -6 -6 -6 -6 -5 -5 -5 -5 -4 -4 -4 -4 -3 -3 -3 -2 -2 -1 ----------- Run | Yrd Mat Mat Min Exi Min Mat Gar Mat Gar Fac Gar Fac Gar Fac Was Fac Gar Fac Gar Fac Gar Fac Gar Fac Was Fac Gar Res Arm Lab Res Gar Acc Matter Collected 22446 | 270 40 606 . . 217 1315 561 202 462 406 526 129 552 340 150 49 668 . 549 211 749 679 342 . 213 820 2329 590 993 . 106 1712 6660 Remotely 4793 | . . . . . . . . . . . . . . . . . . . . . . . . . . . . . . . . . 4793 Salvage Created 39331 | 258 345 1642 . . 196 2005 587 281 417 628 385 159 798 531 1530 49 1129 . 1253 635 2434 1144 518 . 889 1136 3153 772 1090 . 176 2377 12814 Parts 1699 | 17 25 79 . . 6 98 30 12 21 36 28 9 34 45 28 8 42 . 31 30 93 56 25 . 16 68 125 32 63 . 9 110 523 Haulers Intercepted 24 | . 1 6 . . . 2 . . . 2 . . . . . . . . . . . 1 . . . 3 . 1 . . 1 . 7 Recyclers Shooed 35 | . . . . . . 4 . 4 . 3 . . . 4 . . . . . 1 . 1 . . . 1 . 2 . . . . 15 Parts Field Recycled . | . . . . . . . . . . . . . . . . . . . . . . . . . . . . . . . . . . Retrieved Matter . | . . . . . . . . . . . . . . . . . . . . . . . . . . . . . . . . . . Parts Self-Destructed . | . . . . . . . . . . . . . . . . . . . . . . . . . . . . . . . . . . Prevented . | . . . . . . . . . . . . . . . . . . . . . . . . . . . . . . . . . . Kills | -11 -10 -9 -9 -9 -8 -8 -8 -8 -8 -7 -7 -7 -7 -6 -6 -6 -6 -6 -6 -5 -5 -5 -5 -4 -4 -4 -4 -3 -3 -3 -2 -2 -1 ------- Run | Yrd Mat Mat Min Exi Min Mat Gar Mat Gar Fac Gar Fac Gar Fac Was Fac Gar Fac Gar Fac Gar Fac Gar Fac Was Fac Gar Res Arm Lab Res Gar Acc Combat Hostiles Destroyed 483 | . 8 27 . . 4 33 22 4 19 2 17 3 23 6 6 . 22 . 9 4 30 10 16 . 3 9 45 5 13 . 1 32 110 Melee 7 | . . . . . 1 . . . . 1 . . . . . . 1 . . . 3 . . . 1 . . . . . . . . Guns 259 | . 4 24 . . . 22 5 1 5 . . . . 2 . . 4 . 4 1 25 9 12 . . 9 43 3 7 . 1 27 51 Cannons 79 | . . . . . . 8 . 1 2 1 4 3 11 4 5 . 9 . 1 1 2 1 4 . 1 . 2 . 3 . . 4 12 AOE 105 | . 2 3 . . 3 3 17 2 12 . 13 . 12 . . . 7 . 1 2 . . . . . . . . 1 . . . 27 Classes Destroyed 23 | 3 5 3 . . 1 4 2 . . . . . . . 1 . 1 . . . . 1 . . . . . . . . . . 2 Worker 27 | 2 1 2 . . . 3 . . . 2 . 1 . 1 . 1 . . . 4 . . . . . 3 . 1 . . . . 6 Builder 34 | . . 1 . . . 3 . . . 1 . . . 5 . 2 . . . . . 2 . . . 3 . . . . . . 17 Tunneler 10 | 5 1 . . . . . . . . 1 . . . . . . . . . 1 . . . . . 2 . . . . . . . Hauler 24 | . 1 6 . . . 2 . . . 2 . . . . . . . . . . . 1 . . . 3 . 1 . . 1 . 7 Recycler 47 | 1 . . . . 1 7 . 3 . 4 . 1 . 1 . . . . . 4 . 3 . . . 1 . 2 . . . . 19 Carrier 1 | . . . . . . . . . . . . . . . . . . . . . . . . . . . . . . . . . 1 Mechanic 4 | . . . . . . 2 . . . . . . . . . . . . . . . . . . . . . . . . . . 2 Operator 4 | . 1 1 . . . . . . . . . . . . . . . . . . . . . . . . . . 1 . . . 1 Watcher 22 | . 2 3 . . . 1 . 1 . 1 . . . 1 . . . . . 1 . 2 . . . . . . 4 . . . 6 Swarmer 100 | . 3 3 . . . 10 4 2 8 . 9 2 4 2 . . 12 . . . 6 . 11 . . . 5 . . . . 4 15 Cutter 10 | . . . . . . . 1 . . . . . . . . . . . . . . . . . . . 4 . . . . 5 . Saboteur 5 | . . . . . . . . . . . . . . . . . . . . . . 1 . . . . . . 1 . . . 3 Grunt 166 | . 5 13 . . 2 8 11 1 8 . 9 . 13 . . . 6 . 5 1 15 4 3 . . 2 11 . . . . 8 41 Brawler 14 | . . . . . . 1 . . . . . . 1 . . . . . 1 . . . . . . . 5 . . . . . 6 Duelist 16 | . . 1 . . 1 . 1 . 1 . . . . . . . . . 1 . . 1 . . . . . . . . . 3 7 Protector 2 | . . . . . . . . . . . . . . . . . . . . . . . . . . . . . . . . . 2 Sentry 53 | . . 10 . . . 9 3 1 . . . . 2 . . . 2 . . 1 5 1 2 . . 1 8 2 1 . . 3 2 Specialist 7 | . . . . . . 2 . . . . . . . 1 . . . . . . . . . . . . . . 2 . . 1 1 Hunter 42 | . . . . . 1 2 . . . 1 1 . . 2 . . . . 1 . . . . . . . 9 2 2 . . 5 16 Programmer 53 | . . . . . . . 2 . 2 1 . 1 3 2 . . . . 1 2 3 3 . . . 6 2 . 6 . 1 2 16 Heavy 3 | . . . . . . 1 . . . . . . . . . . . . . . . . . . . . . 1 1 . . . . Behemoth 6 | . . . . . . . . . . . . . . . . . 2 . . . 1 . . . . . 1 . . . . 1 1 Compactor 9 | . . . . . . . . . . . . . . . 6 . . . . . . . . . 3 . . . . . . . . Best Kill Streak 24 | 6 5 3 . . 4 6 14 6 7 3 6 2 7 6 1 2 7 . 4 10 7 3 5 . 2 7 13 3 5 . 1 11 24 Combat Bots Only 19 | . 4 3 . . 3 4 14 2 7 1 6 2 7 3 1 . 7 . 4 2 7 2 5 . 2 2 13 3 5 . 1 11 19 Max Kills in Single Turn 8 | 1 2 2 . . 1 2 3 1 2 1 4 1 3 1 1 1 3 . 1 8 2 2 2 . 1 2 2 1 2 . 1 2 5 Gunslinging 1 | . 1 . . . . 1 . . . . . . . . . . . . . . 1 1 . . . . 1 . 1 . . . 1 Exploded 4 | . 2 2 . . 1 1 3 1 2 . 4 . 3 . . . 3 . 1 2 . . . . . . . . 1 . . . 4 Melee 1 | . . . . . 1 . . . . 1 . . . . . . 1 . . . 1 . . . 1 . . . . . . . . Uniques/NPCs Destroyed . | . . . . . . . . . . . . . . . . . . . . . . . . . . . . . . . . . . Combat | -11 -10 -9 -9 -9 -8 -8 -8 -8 -8 -7 -7 -7 -7 -6 -6 -6 -6 -6 -6 -5 -5 -5 -5 -4 -4 -4 -4 -3 -3 -3 -2 -2 -1 -------- Run | Yrd Mat Mat Min Exi Min Mat Gar Mat Gar Fac Gar Fac Gar Fac Was Fac Gar Fac Gar Fac Gar Fac Gar Fac Was Fac Gar Res Arm Lab Res Gar Acc Hostile Shots Fired 2421 | . 23 117 . . 7 133 126 3 89 14 29 13 23 47 . . 214 . 38 19 79 47 35 . . 50 182 35 138 . . 113 847 Missed 760 | . 11 34 . . 3 44 43 1 25 1 8 4 5 13 . . 71 . 12 6 19 12 12 . . 16 55 8 59 . . 35 263 Hits 1661 | . 12 83 . . 4 89 83 2 64 13 21 9 18 34 . . 143 . 26 13 60 35 23 . . 34 127 27 79 . . 78 584 Melee 44 | . . . . . . . 5 . . . . . . . . . . . 2 . . . . . . . 11 . . . . 5 21 Projectile 1617 | . 12 83 . . 4 89 78 2 64 13 21 9 18 34 . . 143 . 24 13 60 35 23 . . 34 116 27 79 . . 73 563 AOE 10 | . . . . . . . 3 . . . . . . . . . . . . . 1 . . . . 1 1 . 1 . . 3 . Critical Strikes 83 | . . 2 . . . 5 5 1 1 1 . 1 . . . . 5 . 4 1 1 3 . . . 5 11 . 4 . . 6 27 Actively Blocked 37 | . . . . . . . . . . . . . . . . . . . . . 1 . . . . . 10 . . . . 1 25 Part Disruptions 4 | . . . . . . . . . . . . . . . . . . . . . . . . . . 2 . . 1 . . . 1 Damage Taken 31892 | . 127 1130 . . 53 1398 1339 30 848 201 322 149 348 698 . . 2824 . 522 252 1209 752 276 . . 625 2398 641 1230 . . 1179 13341 Core 2783 | . 20 166 . . . 217 139 . 141 47 53 16 10 99 . . 218 . 19 19 64 22 12 . . 30 270 112 44 . . . 1065 Absorbed by Shields 2884 | . . . . . . . . . . . . . . . . . . . . . . . 103 . . 229 792 226 447 . . 429 658 Reduced by Siege Mode 1311 | . . . . . . . . . . . . . . . . . 10 . . . . . 15 . . . 153 50 103 . . . 980 Redirected to Shielding 35 | . . . . . . . . . . . . . . . . . . . . . . . . . . . . . . . . . 35 Ignored by Resistances 647 | . . . . . . . . . . . . . . . . . . . . . . . . . . . . . . . . 43 604 Regen/Repaired (Parts) 717 | . . . . . . . 44 . . 227 . . . . . . . . . . . . . . . 187 . 186 . . . 73 . Core Remaining (%) 71 | 100 92 . . . 58 . . . 9 . . . 82 . . . . . 60 . . . 88 . . . 73 . . 88 . 100 33 Volleys Fired 1623 | 16 29 102 . . 6 108 39 27 45 11 33 6 34 45 88 5 57 3 34 18 48 59 29 2 48 41 147 36 67 . 4 77 359 Largest 4 | 2 2 2 . . 2 2 2 2 2 1 2 2 2 3 1 2 3 1 4 4 3 4 3 1 1 4 4 4 4 . 4 4 4 Hottest 302 | 100 100 106 . . 51 69 97 60 60 69 106 127 127 140 85 135 173 5 182 257 159 212 131 7 113 134 212 195 219 . 240 289 302 Shots Fired 3560 | 32 56 200 . . 8 203 63 28 56 12 41 9 58 78 87 10 102 3 73 29 141 128 57 2 48 111 418 109 172 . 11 270 945 Gun 2514 | 32 54 196 . . 4 162 37 7 24 . . . . 33 . . 32 . 37 10 107 91 37 . . 100 380 100 131 . 9 236 695 Cannon 735 | . . . . . . 39 3 13 11 12 17 9 46 40 80 10 55 . 32 16 8 29 20 . 41 . 28 2 38 . 1 25 160 Launcher 146 | . 2 4 . . 4 2 17 2 18 . 13 . 11 . . . 3 . . . . . . . . . . 3 3 . . . 64 Special 165 | . . . . . . . 6 6 3 . 11 . 1 5 7 . 12 3 4 3 26 8 . 2 7 11 10 4 . . 1 9 26 Kinetic 2348 | . . 86 . . 4 196 39 20 21 . 10 6 22 33 . 5 48 . 40 20 41 83 57 . 1 100 380 93 131 . 9 221 682 Thermal 816 | 32 54 89 . . . . . . 14 . . 2 23 40 80 5 21 . 12 6 72 37 . . 40 . 28 9 38 . 1 40 173 Explosive 83 | . 2 4 . . 4 2 17 2 18 . 13 . 11 . . . 3 . . . . . . . . . . . . . . . 7 Electromagnetic 148 | . . 21 . . . 5 1 . . 12 7 1 1 . . . 18 . 17 . 2 . . . . . . 3 3 . . . 57 Robot Hit Streak 67 | 8 12 17 . . 10 29 21 10 10 8 16 5 16 30 27 . 17 3 15 22 19 10 11 4 20 25 67 54 26 . 13 18 52 Robot Miss Streak 7 | 1 3 5 . . 2 4 2 7 4 1 2 4 3 4 1 . 2 1 3 1 4 2 1 . 1 2 3 2 1 . . 4 6 Penetration Max 3 | . . . . . . 1 . . . . . . . . . . . . 1 . 1 1 1 . . 1 2 . 1 . 1 1 3 Secondary Targets 41 | . 1 2 . . . 2 2 . . . . . . . . . . . . . 2 1 . . . 2 15 . 3 . . 1 10 Max Gunslinging Chain 2 | . 1 1 . . . 1 1 . . . . . . . . . . . . . 1 1 . . . 1 2 . 1 . . 1 2 Autonomous 53 | . . . . . . . . . . . . . . . . . . . . . 53 . . . . . . . . . . . . Shots Hit Robots 2580 | 24 36 153 . . 5 163 44 25 37 26 25 12 42 53 94 2 109 2 85 17 147 61 32 2 67 84 298 86 102 . 10 165 572 Core Hits 1449 | 8 20 65 . . 10 98 41 19 41 11 44 9 56 22 16 3 38 . 24 19 70 29 19 . 9 34 123 23 41 . 4 72 481 Critical Kills 97 | . . 1 . . . 2 . . . . . . . 1 1 . . . . . 2 . 1 . 1 . 6 1 1 . 2 27 51 Critical Parts Destroyed 150 | . . 3 . . . 2 . . . . . . . . . . . . . . . . 1 . . . 10 1 3 . 3 31 96 Critical Strikes 297 | 3 5 7 . . . 5 . . . 2 1 . . 1 1 . 4 . 3 1 3 . 6 . 2 . 17 2 4 . 5 61 164 Burn 11 | 3 5 3 . . . . . . . . . . . . . . . . . . . . . . . . . . . . . . . Meltdown 5 | . . . . . . . . . . . . . . 1 1 . . . . . . . . . 1 . . . . . . 1 1 Destroy 256 | . . 1 . . . 5 . . . . . . . . . . . . . . 2 . 2 . . . 17 2 4 . 5 60 158 Blast 12 | . . . . . . . . . . . . . . . . . . . 2 1 . . 4 . . . . . . . . . 5 Corrupt 1 | . . . . . . . . . . . 1 . . . . . . . . . . . . . . . . . . . . . . Smash 3 | . . 3 . . . . . . . . . . . . . . . . . . . . . . . . . . . . . . . Sever 9 | . . . . . . . . . . 2 . . . . . . 4 . 1 . 1 . . . 1 . . . . . . . . Melee Attacks 434 | . . 14 . . 2 7 6 2 22 39 12 17 23 50 20 9 47 . 32 15 53 5 2 . 30 27 . . . . . . . Impact 16 | . . 14 . . 2 . . . . . . . . . . . . . . . . . . . . . . . . . . . . Slashing 418 | . . . . . . 7 6 2 22 39 12 17 23 50 20 9 47 . 32 15 53 5 2 . 30 27 . . . . . . . Piercing . | . . . . . . . . . . . . . . . . . . . . . . . . . . . . . . . . . . Sneak Attacks 92 | . . 4 . . . 4 . 1 . 9 . 4 . 9 20 2 . . . 1 . 3 . . 30 5 . . . . . . . Combat Hostiles 50 | . . . . . . . . . . . . . . . 20 . . . . . . . . . 30 . . . . . . . . Follow-up Attacks 2 | . . . . . . . . . . 2 . . . . . . . . . . . . . . . . . . . . . . . Damage Inflicted 85035 | 297 666 2723 . . 426 3770 2149 643 1966 1193 1675 554 2492 1859 3062 225 5269 . 3769 1865 6009 1631 1307 6 2792 2309 7909 1937 2905 . 152 2399 21076 Guns 36783 | 297 466 2028 . . 37 2307 589 101 267 . . . . 429 . . 346 . 566 153 3477 1235 594 . . 1853 7599 1742 2133 . 91 1621 8852 Cannons 16499 | . . . . . . 803 30 253 232 334 236 183 1009 662 2259 64 1419 . 797 148 116 117 673 . 1484 . 310 . 408 . 53 778 4131 Explosions 17769 | . 200 178 . . 358 304 1530 229 1277 . 1439 . 1392 . . . 789 . . 1421 . . . . . . . 195 364 . . . 8093 Melee 13943 | . . 517 . . 31 356 . 60 190 859 . 371 91 768 803 161 2715 . 2406 143 2416 277 40 . 1308 431 . . . . . . . Ramming 41 | . . . . . . . . . . . . . . . . . . . . . . 2 . 6 . 25 . . . . 8 . . Kinetic 34682 | . . 956 . . 37 2964 589 354 356 . 146 116 473 429 . 64 891 . 721 175 605 1093 1267 . . 1853 7599 1592 2133 . 91 1332 8846 Thermal 18112 | 297 466 829 . . . 99 . . 143 . . 41 536 662 2259 . 592 . 181 126 2988 259 . . 1484 . 310 150 408 . 53 1067 5162 Explosive 10424 | . 200 178 . . 358 205 1530 229 1277 . 1439 . 1392 . . . 716 . . 1421 . . . . . . . . . . . . 1479 Electromagnetic 7833 | . . 243 . . . 146 30 . . 334 90 26 . . . . 355 . 461 . . . . . . . . 195 364 . . . 5589 Impact 548 | . . 517 . . 31 . . . . . . . . . . . . . . . . . . . . . . . . . . . . Slashing 13395 | . . . . . . 356 . 60 190 859 . 371 91 768 803 161 2715 . 2406 143 2416 277 40 . 1308 431 . . . . . . . Piercing . | . . . . . . . . . . . . . . . . . . . . . . . . . . . . . . . . . . Highest Corruption 94 | . . 2 2 2 2 4 7 7 8 1 1 1 2 2 2 2 4 4 4 . 1 3 3 . 4 9 15 1 1 1 . . 94 Average Corruption 5 | . . 2 2 2 2 3 4 7 7 1 1 1 1 1 2 2 2 4 4 . 1 1 3 . 1 4 11 1 1 1 . . 23 Corruption Purged . | . . . . . . . . . . . . . . . . . . . . . . . . . . . . . . . . . . Corruption Blocked . | . . . . . . . . . . . . . . . . . . . . . . . . . . . . . . . . . . Effects 567 | . . 14 2 12 10 44 34 9 43 4 10 9 15 20 8 4 27 1 15 . 4 21 7 . 11 27 84 3 10 . . . 119 Message Errors 112 | . . 5 . 3 2 7 7 2 4 . 3 2 3 3 . 1 4 1 7 . . 3 1 . 3 8 21 . 3 . . . 19 Matter Fused 125 | . . 4 2 2 4 13 7 3 12 . 1 3 5 6 3 1 5 . 2 . . 3 1 . 1 5 13 . 2 . . . 27 Heat Flow Errors 71 | . . 1 . 1 1 6 6 1 8 . 2 . 3 5 2 . 4 . 3 . . 6 2 . 1 5 8 . . . . . 6 Energy Discharges 65 | . . . . . . 5 5 3 4 2 3 2 1 . 1 1 2 . . . 2 4 2 . . 3 7 2 1 . . . 15 Parts Rejected 7 | . . . . . . . . . . . . . . . . . . . . . . . . . 1 . 3 . . . . . 3 Parts Fused 8 | . . . . . . 2 . . 1 . . . . . . . . . . . . . . . . 1 2 1 . . . . 1 Data Loss (minor) 66 | . . 1 . 4 2 3 3 . 7 . 1 2 1 2 . 1 7 . 2 . . 3 1 . 1 3 10 . 1 . . . 11 Data Loss (major) 25 | . . 1 . 1 . 4 3 . 1 . . . 2 1 1 . 1 . . . . 1 . . 2 . 2 . 1 . . . 4 Misfires 27 | . . 1 . . . 3 1 . 3 1 . . . 2 . . 3 . . . 2 1 . . 1 1 5 . . . . . 3 Alerts 16 | . . . . 1 1 1 2 . 1 1 . . . 1 . . . . . . . . . . . 1 3 . 1 . . . 3 Misdirections 4 | . . . . . . . . . . . . . . . . . . . . . . . . . . . . . . . . . 4 Weapon Failures 41 | . . 1 . . . . . . 2 . . . . . 1 . 1 . 1 . . . . . 1 . 10 . 1 . . . 23 Overload Shots . | . . . . . . . . . . . . . . . . . . . . . . . . . . . . . . . . . . Overflow Damage 2405 | . . 252 . . . 138 19 36 57 82 82 163 125 205 . . 195 . 67 212 124 60 47 . . 109 . . 13 . . 22 397 Projectiles 364 | . . . . . . . . . . . . . 49 6 . . 11 . 47 . . 6 47 . . . . . 13 . . 22 163 Explosions 706 | . . 31 . . . . 19 36 57 . 82 . 76 . . . 23 . . 148 . . . . . . . . . . . . 234 Melee 1335 | . . 221 . . . 138 . . . 82 . 163 . 199 . . 161 . 20 64 124 54 . . . 109 . . . . . . . Knockbacks 60 | . . 1 . . . 9 . 6 8 . 3 5 6 . . . 5 . 2 . 1 . 2 . . 1 . . . . . . 11 Impact 2 | . . 1 . . . . . . . . . . . . . . . . . . . . . . . 1 . . . . . . . Kinetic 54 | . . . . . . 9 . 6 8 . 3 4 6 . . . 4 . 2 . 1 . 2 . . . . . . . . . 9 Secondary 4 | . . . . . . . . . . . . 1 . . . . 1 . . . . . . . . . . . . . . . 2 Self-Inflicted Damage 1027 | . . 29 . . . . 60 . 36 . 30 . . . . . . . . . . . . . . . . 24 . . . . 848 Shots 30 | . . 1 . . . . 4 . 1 . 1 . . . . . . . . . . . . . . . . 3 . . . . 20 Rammed 4 | . . . . . . . . . . . . . . . . . . . . . . 1 . 1 . 1 . . . . 1 . . Targets Rammed 4 | . . . . . . . . . . . . . . . . . . . . . . 1 . 1 . 1 . . . . 1 . . Kicked . | . . . . . . . . . . . . . . . . . . . . . . . . . . . . . . . . . . Crushed . | . . . . . . . . . . . . . . . . . . . . . . . . . . . . . . . . . . Highest Temperature 860 | 195 258 432 . 195 229 231 269 80 282 72 232 150 306 238 282 102 860 . 320 148 217 268 368 . 341 232 436 423 195 . 158 345 461 Average Temperature 93 | 77 76 106 . 100 120 45 88 31 87 30 52 64 93 81 88 41 146 . 78 44 32 86 112 . 122 99 77 73 69 . 65 123 108 Received Heat Transfer 6181 | . 66 462 . . . 441 192 36 288 . 60 6 117 . . . 2048 . 270 72 411 229 12 . . 87 244 30 12 . . 93 1005 Effects 36 | . 1 1 . . . . . . 1 . . . 1 1 . . 11 . 1 . . . 1 . . . 2 2 . . . 2 12 Shutdowns 10 | . . . . . . . . . . . . . . . . . 3 . 1 . . . 1 . . . 2 1 . . . . 2 Energy Bleed 9 | . 1 . . . . . . . 1 . . . 1 1 . . 3 . . . . . . . . . . . . . . 1 1 Interference 11 | . . . . . . . . . . . . . . . . . 2 . . . . . . . . . . . . . . 1 8 Matter Decay 2 | . . . . . . . . . . . . . . . . . 1 . . . . . . . . . . . . . . . 1 Short Circuit 2 | . . 1 . . . . . . . . . . . . . . 1 . . . . . . . . . . . . . . . . Damage (minor) 2 | . . . . . . . . . . . . . . . . . 1 . . . . . . . . . . 1 . . . . . Siege Activations 17 | . . . . . . . . . . . . . . . . . 1 . . . . . 3 . . . 3 1 2 . . 1 6 Total Turns 501 | . . . . . . . . . . . . . . . . . 23 . . . . . 43 . . . 95 23 48 . . 27 242 Longest Duration 67 | . . . . . . . . . . . . . . . . . 23 . . . . . 26 . . . 52 23 29 . . 27 67 Martial Activations . | . . . . . . . . . . . . . . . . . . . . . . . . . . . . . . . . . . Shielding Activations . | . . . . . . . . . . . . . . . . . . . . . . . . . . . . . . . . . . Robots Disrupted 1 | . . . . . . . . . . . . . . . . . . . . . . . . . . . . . . . . . 1 Combat Hostiles 1 | . . . . . . . . . . . . . . . . . . . . . . . . . . . . . . . . . 1 Robots Corrupted 32 | . . 2 . . . 1 . . . 1 . . . . . . 1 . 3 . . . . . . . . 2 2 . . . 20 Combat Hostiles 27 | . . . . . . . . . . . . . . . . . 1 . 3 . . . . . . . . 2 2 . . . 19 Parts Fried 69 | . . 5 . . . 1 . . . 2 . 1 . . . . . . 6 . . . . . . . . 2 3 . . . 49 Impact Corruptions 7 | . . 7 . . . . . . . . . . . . . . . . . . . . . . . . . . . . . . . Robots Melted 8 | 1 2 . . . . . . . . . . . . 1 1 . . . . . . . . . 1 . . . . . . 1 1 Combat Hostiles 6 | . 2 . . . . . . . . . . . . . 1 . . . . . . . . . 1 . . . . . . 1 1 Parts Melted 50 | 3 4 13 . . . . . . 2 . . . 2 4 1 . . . 2 . 6 . . . 1 2 . . . . . 2 8 Heat Transferred 22786 | 1110 1739 2590 . . . 100 . . 370 . . 50 775 987 2775 . 642 . 333 198 2798 296 . . 1406 . 296 185 333 . 37 999 4767 Parts Sabotaged 4 | . . . . . . . . . . . . . . . . . . . . . . . . . . . . . . . . . 4 Parts Stolen . | . . . . . . . . . . . . . . . . . . . . . . . . . . . . . . . . . . Parts Stripped . | . . . . . . . . . . . . . . . . . . . . . . . . . . . . . . . . . . Power Chain Reactions 14 | . . . . . . 2 . . . . . . . . . . 1 . . . . . . . . . . . . . . . 11 Alert | -11 -10 -9 -9 -9 -8 -8 -8 -8 -8 -7 -7 -7 -7 -6 -6 -6 -6 -6 -6 -5 -5 -5 -5 -4 -4 -4 -4 -3 -3 -3 -2 -2 -1 ------- Run | Yrd Mat Mat Min Exi Min Mat Gar Mat Gar Fac Gar Fac Gar Fac Was Fac Gar Fac Gar Fac Gar Fac Gar Fac Was Fac Gar Res Arm Lab Res Gar Acc Maximum Alert Level 5 | . . 1 . . . 2 4 3 4 2 3 2 4 3 . . 3 2 2 1 4 3 2 1 . . 5 3 1 . . 4 5 Low Security (%) 30 | 100 100 92 100 . 100 72 . . . 1 14 . . . 100 100 30 . . 55 . . . . 100 100 11 . 28 . 100 7 . Level 1 17 | . . 7 . . . 18 4 . 6 56 6 76 6 . . . 8 . 23 44 18 77 39 100 . . 8 . 71 . . 11 . Level 2 20 | . . . . . . 8 9 78 20 41 38 23 15 89 . . 48 100 76 . 15 4 60 . . . 24 . . . . 9 20 Level 3 20 | . . . . . . . 56 21 72 . 40 . 11 10 . . 12 . . . 28 18 . . . . 43 100 . . . 64 28 Level 4 7 | . . . . . . . 28 . . . . . 66 . . . . . . . 38 . . . . . 9 . . . . 5 10 Level 5 4 | . . . . . . . . . . . . . . . . . . . . . . . . . . . 2 . . . . . 40 High Security . | . . . . . . . . . . . . . . . . . . . . . . . . . . . . . . . . . . Max Security . | . . . . . . . . . . . . . . . . . . . . . . . . . . . . . . . . . . Peak Influence 2323 | 10 148 239 34 . 85 533 1383 720 1109 581 861 456 1465 768 175 9 883 463 595 379 1535 805 649 340 105 123 1600 906 397 . 30 1105 2323 Initial 900 | . . . 34 . . . 343 674 341 581 135 451 206 768 175 . . 463 308 312 259 805 219 340 105 . 76 900 382 . . . 662 Average 535 | 1 56 76 28 . 11 160 966 640 767 364 579 354 1012 564 43 . 424 453 489 188 905 401 472 321 20 29 750 832 218 . 4 800 1318 Influence Increases 18456 | 40 242 855 . . 120 1026 1090 221 818 138 806 166 1319 300 4 30 1013 18 327 461 1366 399 430 . 2 551 1684 201 590 . 37 1205 2997 Destroy 0b10 Robot/C 9725 | . 160 540 . . 80 660 440 100 380 40 360 80 640 120 . . 460 . 240 80 800 220 320 . . 180 1020 100 260 . 20 790 1635 Destroy 0b10 Robot/NC 930 | 40 30 65 . . 5 90 . 30 5 55 . 15 5 40 . 15 25 . 30 50 30 40 . . . 60 10 20 25 . 5 . 240 Destroy Leader 1510 | . 36 178 . . 20 196 20 36 20 26 10 20 70 32 . . 40 . 40 22 50 56 20 . . 46 60 40 78 . 12 70 312 Allied During Kill 344 | . . . . . . . . 6 . . 38 6 62 1 . . 15 . 14 . 82 3 . . . 14 51 . . . . 52 . Trap Triggered on 0b10 20 | . . . . . . . . . . . . . . . . . 20 . . . . . . . . . . . . . . . . Successful Hack 217 | . . 13 . . . 7 . . 30 . . 18 14 5 . . . 18 . 8 . 8 . . . 42 14 16 24 . . . . Disable Machine 828 | . . . . . . 30 . 30 75 . 15 15 15 . . . 60 . . 225 45 . 15 . . 75 45 . 120 . . 15 48 Anti-Garrison Action 2363 | . . . . . . . 550 . 200 . 300 . 350 . . . 200 . . . 250 . 50 . . . 350 . . . . 113 . Destroy Structure 1847 | . 1 29 . . 15 28 65 19 93 17 83 12 103 57 4 15 43 . 3 76 49 72 25 . 2 104 134 10 68 . . 150 570 Lose Combat Pursuer 672 | . 15 30 . . . 15 15 . 15 . . . 60 45 . . 150 . . . 60 . . . . 30 . 15 15 . . 15 192 Influence Decreases 16159 | 40 242 765 66 24 120 497 236 1079 234 1054 138 732 149 1263 506 30 130 460 173 685 202 1620 95 349 302 442 193 1072 1069 250 37 100 1805 Entered New Map 7318 | . . . 56 24 . . 186 709 184 528 58 410 89 697 327 . . 420 133 283 112 730 95 309 195 . 33 700 347 250 . . 443 Time Decay 6194 | 40 242 518 10 . 120 487 . 180 . 526 . 302 . 526 179 30 . 40 . 362 . 510 . 40 107 332 . 362 522 . 37 . 722 Lost Part 1040 | . . 30 . . . 10 50 . 40 . 20 . . 20 . . 90 . 20 . 10 40 . . . . 40 10 40 . . 10 610 Lost Ally 790 | . . . . . . . . 40 10 . 60 20 60 20 . . 40 . 20 40 80 40 . . . 110 120 . 10 . . 90 30 Purge Threat 817 | . . 217 . . . . . 150 . . . . . . . . . . . . . 300 . . . . . . 150 . . . . Squads Dispatched 73 | . 2 4 . . . 9 . . . 5 . 1 . 3 . . . . . 3 . 5 . . . 3 . 4 5 . . . 29 Investigation 2 | . . 1 . . . 1 . . . . . . . . . . . . . . . . . . . . . . . . . . . Extermination 21 | . . . . . . . . . . 3 . 1 . 2 . . . . . 1 . 3 . . . 2 . 1 3 . . . 5 Reinforcement 28 | . 2 3 . . . 3 . . . 2 . . . 1 . . . . . 1 . 1 . . . 1 . 2 2 . . . 10 Assault 15 | . . . . . . . . . . . . . . . . . . . . . . 1 . . . . . 1 . . . . 13 Garrison 7 | . . . . . . 5 . . . . . . . . . . . . . 1 . . . . . . . . . . . . 1 Intercept . | . . . . . . . . . . . . . . . . . . . . . . . . . . . . . . . . . . Searches Triggered . | . . . . . . . . . . . . . . . . . . . . . . . . . . . . . . . . . . Construction Impeded 5 | . . . . . . . . . . . . . . . . . . . . . . . . . . . . . . . . . 5 Haulers Reinforced 5 | . . . . . . . . . . 1 . . . . . . . . . 1 . 1 . . . . . . . . . . 2 Active Scanning Responses . | . . . . . . . . . . . . . . . . . . . . . . . . . . . . . . . . . . Cargo Convoy Interrupts . | . . . . . . . . . . . . . . . . . . . . . . . . . . . . . . . . . . Alert ID Control Effect 9 | . . . . . . . . . . . 6 . . 2 . . . . . . . . . . . . . . . . . . 1 Stealth | -11 -10 -9 -9 -9 -8 -8 -8 -8 -8 -7 -7 -7 -7 -6 -6 -6 -6 -6 -6 -5 -5 -5 -5 -4 -4 -4 -4 -3 -3 -3 -2 -2 -1 --------- Run | Yrd Mat Mat Min Exi Min Mat Gar Mat Gar Fac Gar Fac Gar Fac Was Fac Gar Fac Gar Fac Gar Fac Gar Fac Was Fac Gar Res Arm Lab Res Gar Acc Distress Signals 24 | . 1 4 . . 1 2 . 2 . . . . . 1 . . . . . 1 . . . . . 1 . 1 . . . . 10 Communications Jammed 67 | . . . . . . . . . . . . . . . . . . . . . . . . . . . . . 12 . . . 55 Distress Signals 67 | . . . . . . . . . . . . . . . . . . . . . . . . . . . . . 12 . . . 55 Times Spotted 677 | . 17 45 . . 3 44 23 10 22 5 18 5 33 15 6 . 31 . 10 6 37 18 15 . 6 14 56 6 19 . . 31 182 Peak Tracking Total 16 | . 5 6 . . 2 3 8 3 5 1 4 3 9 6 2 1 14 . 4 4 6 6 4 . 4 2 16 2 5 . . 5 13 Tactical Retreats 36 | . 1 1 . . . 1 1 . 1 . . . 1 2 . . 7 . . . 2 . . . . 2 . 1 1 . . 1 14 Traps | -11 -10 -9 -9 -9 -8 -8 -8 -8 -8 -7 -7 -7 -7 -6 -6 -6 -6 -6 -6 -5 -5 -5 -5 -4 -4 -4 -4 -3 -3 -3 -2 -2 -1 ------- Run | Yrd Mat Mat Min Exi Min Mat Gar Mat Gar Fac Gar Fac Gar Fac Was Fac Gar Fac Gar Fac Gar Fac Gar Fac Was Fac Gar Res Arm Lab Res Gar Acc Traps Triggered 60 | . . . . . . 6 7 . 4 . 10 . 6 2 . 1 . . . . 6 . . 1 . 1 6 2 1 . . . 7 Indirectly 5 | . . . . . . . . . . . . . . . . . . . . . . . . . . . . . . . . . 5 Trap Hack Attempts . | . . . . . . . . . . . . . . . . . . . . . . . . . . . . . . . . . . Triggered . | . . . . . . . . . . . . . . . . . . . . . . . . . . . . . . . . . . Disarmed . | . . . . . . . . . . . . . . . . . . . . . . . . . . . . . . . . . . Reprogrammed . | . . . . . . . . . . . . . . . . . . . . . . . . . . . . . . . . . . Reused 2 | . . . . . . . . . . . . . . . . . 2 . . . . . . . . . . . . . . . . Traps Extracted . | . . . . . . . . . . . . . . . . . . . . . . . . . . . . . . . . . . Installed 3 | . . . . . . . . . . . . 1 . . . . 2 . . . . . . . . . . . . . . . . Triggered 2 | . . . . . . . . . . . . . . . . . 2 . . . . . . . . . . . . . . . . Most Traps Carried 3 | . . . . . . . . . 1 1 1 1 . . . . 3 . . . . . . . . . . . . . . . . Machines | -11 -10 -9 -9 -9 -8 -8 -8 -8 -8 -7 -7 -7 -7 -6 -6 -6 -6 -6 -6 -5 -5 -5 -5 -4 -4 -4 -4 -3 -3 -3 -2 -2 -1 ---------- Run | Yrd Mat Mat Min Exi Min Mat Gar Mat Gar Fac Gar Fac Gar Fac Was Fac Gar Fac Gar Fac Gar Fac Gar Fac Was Fac Gar Res Arm Lab Res Gar Acc Machines Disabled 85 | . . . . . . 2 4 2 7 . 5 1 7 . . . 6 . . 15 6 . 2 . . 5 7 . 8 . . 4 4 Max in Single Turn 5 | . . . . . . 1 1 1 1 . 1 1 1 . . . 1 . . 5 1 . 1 . . 2 1 . 1 . . 1 1 Garrison Access 5 | . . . . . . . . . . . . . . 2 . . . . . . . . . . . . . . . . . . 3 Garrison Relay 25 | . . . . . . . 4 . 2 . 4 . 5 . . . 2 . . . 3 . 1 . . . 3 . . . . 1 . Machines Repaired . | . . . . . . . . . . . . . . . . . . . . . . . . . . . . . . . . . . Machines Dismantled . | . . . . . . . . . . . . . . . . . . . . . . . . . . . . . . . . . . Machines Sabotaged . | . . . . . . . . . . . . . . . . . . . . . . . . . . . . . . . . . . Overloaded Fab Kills . | . . . . . . . . . . . . . . . . . . . . . . . . . . . . . . . . . . Hacking | -11 -10 -9 -9 -9 -8 -8 -8 -8 -8 -7 -7 -7 -7 -6 -6 -6 -6 -6 -6 -5 -5 -5 -5 -4 -4 -4 -4 -3 -3 -3 -2 -2 -1 --------- Run | Yrd Mat Mat Min Exi Min Mat Gar Mat Gar Fac Gar Fac Gar Fac Was Fac Gar Fac Gar Fac Gar Fac Gar Fac Was Fac Gar Res Arm Lab Res Gar Acc Machines Accessed 77 | . 2 5 . 2 . 5 2 4 3 2 1 5 2 5 . 1 1 2 . 2 2 6 1 . . 9 1 1 6 . 1 1 5 Terminals 48 | . 2 5 . . . 4 2 3 3 . 1 3 2 2 . . 1 1 . . 2 4 1 . . 6 1 1 2 . . 1 1 Fabricators 2 | . . . . . . . . . . . . . . . . . . . . . . . . . . 1 . . 1 . . . . Repair Stations 5 | . . . . . . . . . . 1 . . . 1 . . . . . 1 . . . . . . . . 2 . . . . Recycling Units 5 | . . . . . . . . . . . . 1 . . . . . . . . . 1 . . . 1 . . 1 . . . 1 Scanalyzers . | . . . . . . . . . . . . . . . . . . . . . . . . . . . . . . . . . . Garrison Access 15 | . . . . . . 1 . 1 . 1 . 1 . 2 . 1 . 1 . 1 . 1 . . . 1 . . . . 1 . 3 Total Hacks 142 | . 4 12 . 2 . 13 3 12 6 4 1 8 2 6 . 3 3 4 . 5 2 10 1 . . 19 2 3 9 . 2 1 5 Successful 51 | . . 4 . 2 . 3 1 4 2 4 . 3 1 3 . 1 1 2 . 2 . 4 . . . 6 1 1 2 . 1 . 3 Failed 91 | . 4 8 . . . 10 2 8 4 . 1 5 1 3 . 2 2 2 . 3 2 6 1 . . 13 1 2 7 . 1 1 2 Catastrophic 27 | . 2 1 . . . 2 1 1 . . . 3 1 1 . . . 1 . . 2 4 1 . . 6 . . . . . . 1 Database Lockouts . | . . . . . . . . . . . . . . . . . . . . . . . . . . . . . . . . . . Manual 52 | . 1 11 . 1 . 7 1 6 . 1 . 2 . 1 . 2 . 1 . 1 . 4 1 . . 7 . . 3 . 1 1 . Terminals 94 | . 4 12 . . . 12 3 11 6 . 1 3 2 3 . . 3 2 . . 2 7 1 . . 12 2 3 3 . . 1 1 Fabricators 5 | . . . . . . . . . . . . . . . . . . . . . . . . . . 4 . . 1 . . . . Repair Stations 11 | . . . . . . . . . . 3 . . . 1 . . . . . 3 . . . . . . . . 4 . . . . Recycling Units 5 | . . . . . . . . . . . . 1 . . . . . . . . . 1 . . . 1 . . 1 . . . 1 Scanalyzers . | . . . . . . . . . . . . . . . . . . . . . . . . . . . . . . . . . . Garrison Access 25 | . . . . . . 1 . 1 . 1 . 4 . 2 . 3 . 2 . 2 . 2 . . . 2 . . . . 2 . 3 Terminal Hacks 26 | . . 4 . 2 . 2 1 3 2 . . 1 1 1 . . 1 1 . . . 2 . . . 2 1 1 1 . . . . Record 1 | . . . . 1 . . . . . . . . . . . . . . . . . . . . . . . . . . . . . Level Access Points 1 | . . . . . . . . . . . . 1 . . . . . . . . . . . . . . . . . . . . . Branch Access Points 4 | . . 1 . . . 1 . . . . . . . . . . . . . . . . . . . 1 . 1 . . . . . Emergency Access Points 4 | . . . . . . . . . 1 . . . 1 . . . 1 . . . . . . . . . 1 . . . . . . Garrison Index 1 | . . . . . . . . . . . . . . . . . . 1 . . . . . . . . . . . . . . . Alert Level 1 | . . . . . . . . 1 . . . . . . . . . . . . . . . . . . . . . . . . . Unreport Threat 6 | . . 2 . . . . . 1 . . . . . . . . . . . . . 2 . . . . . . 1 . . . . Locate Traps 2 | . . . . . . 1 . 1 . . . . . . . . . . . . . . . . . . . . . . . . . Hauler Manifests 1 | . . . . . . . . . . . . . . . . . . . . . . . . . . 1 . . . . . . . Zone Layout 2 | . . 1 . . . . . . . . . . . 1 . . . . . . . . . . . . . . . . . . . Garrison Registry 1 | . . . . . . . 1 . . . . . . . . . . . . . . . . . . . . . . . . . . Security Stations 1 | . . . . . . . . . 1 . . . . . . . . . . . . . . . . . . . . . . . . Proto ID Catalog 1 | . . . . 1 . . . . . . . . . . . . . . . . . . . . . . . . . . . . . Fabricator Hacks . | . . . . . . . . . . . . . . . . . . . . . . . . . . . . . . . . . . Repair Station Hacks 2 | . . . . . . . . . . 2 . . . . . . . . . . . . . . . . . . . . . . . Scan Component 1 | . . . . . . . . . . 1 . . . . . . . . . . . . . . . . . . . . . . . Repair 1 | . . . . . . . . . . 1 . . . . . . . . . . . . . . . . . . . . . . . Recycling Unit Hacks 1 | . . . . . . . . . . . . . . . . . . . . . . . . . . 1 . . . . . . . Retrieve Components 1 | . . . . . . . . . . . . . . . . . . . . . . . . . . 1 . . . . . . . Scanalyzer . | . . . . . . . . . . . . . . . . . . . . . . . . . . . . . . . . . . Garrison Access Hacks 17 | . . . . . . 1 . 1 . 1 . 2 . 2 . 1 . 1 . 1 . 1 . . . 2 . . . . 1 . 3 Unlock Access 10 | . . . . . . 1 . 1 . 1 . 1 . . . 1 . 1 . 1 . 1 . . . 1 . . . . 1 . . Seal Access 5 | . . . . . . . . . . . . . . 2 . . . . . . . . . . . . . . . . . . 3 Coupler Status 2 | . . . . . . . . . . . . 1 . . . . . . . . . . . . . 1 . . . . . . . Unauthorized Hacks 5 | . . . . . . . . . . 1 . . . . . . . . . 1 . 1 . . . 1 . . 1 . . . . Terminals . | . . . . . . . . . . . . . . . . . . . . . . . . . . . . . . . . . . Fabricators 1 | . . . . . . . . . . . . . . . . . . . . . . . . . . 1 . . . . . . . Liberate 1 | . . . . . . . . . . . . . . . . . . . . . . . . . . 1 . . . . . . . Repair Stations 2 | . . . . . . . . . . 1 . . . . . . . . . . . . . . . . . . 1 . . . . Mechanics 2 | . . . . . . . . . . 1 . . . . . . . . . . . . . . . . . . 1 . . . . Recycling Units . | . . . . . . . . . . . . . . . . . . . . . . . . . . . . . . . . . . Scanalyzers . | . . . . . . . . . . . . . . . . . . . . . . . . . . . . . . . . . . Garrison Access 2 | . . . . . . . . . . . . . . . . . . . . 1 . 1 . . . . . . . . . . . Reprogram 2 | . . . . . . . . . . . . . . . . . . . . 1 . 1 . . . . . . . . . . . Data Cores Recovered 2 | . . . . . . . . . . . . 1 . . . . . . . . . . . . . . . . 1 . . . . Used . | . . . . . . . . . . . . . . . . . . . . . . . . . . . . . . . . . . Hacking Detections 63 | . 2 5 . . . 5 1 4 3 . 1 5 2 2 . 1 1 2 . 1 2 5 1 . . 9 1 1 5 . 1 1 2 Full Trace Events 2 | . . 1 . . . 1 . . . . . . . . . . . . . . . . . . . . . . . . . . . Feedback Events . | . . . . . . . . . . . . . . . . . . . . . . . . . . . . . . . . . . Feedback Blocked . | . . . . . . . . . . . . . . . . . . . . . . . . . . . . . . . . . . Robot Schematics Acquired . | . . . . . . . . . . . . . . . . . . . . . . . . . . . . . . . . . . Robots Built . | . . . . . . . . . . . . . . . . . . . . . . . . . . . . . . . . . . Authchips . | . . . . . . . . . . . . . . . . . . . . . . . . . . . . . . . . . . Time . | . . . . . . . . . . . . . . . . . . . . . . . . . . . . . . . . . . Total Robot Build Rating . | . . . . . . . . . . . . . . . . . . . . . . . . . . . . . . . . . . Part Schematics Acquired . | . . . . . . . . . . . . . . . . . . . . . . . . . . . . . . . . . . Parts Built . | . . . . . . . . . . . . . . . . . . . . . . . . . . . . . . . . . . Authchips . | . . . . . . . . . . . . . . . . . . . . . . . . . . . . . . . . . . Time . | . . . . . . . . . . . . . . . . . . . . . . . . . . . . . . . . . . Total Part Build Rating . | . . . . . . . . . . . . . . . . . . . . . . . . . . . . . . . . . . Parts Repaired 1 | . . . . . . . . . . 1 . . . . . . . . . . . . . . . . . . . . . . . Time 44 | . . . . . . . . . . 44 . . . . . . . . . . . . . . . . . . . . . . . Parts Recycled . | . . . . . . . . . . . . . . . . . . . . . . . . . . . . . . . . . . Recycled Matter . | . . . . . . . . . . . . . . . . . . . . . . . . . . . . . . . . . . Retrieved Matter . | . . . . . . . . . . . . . . . . . . . . . . . . . . . . . . . . . . Retrieved Components 3 | . . . . . . . . . . . . . . . . . . . . . . . . . . 3 . . . . . . . Parts Scanalyzed . | . . . . . . . . . . . . . . . . . . . . . . . . . . . . . . . . . . Part Schematics Acquired . | . . . . . . . . . . . . . . . . . . . . . . . . . . . . . . . . . . Parts Damaged . | . . . . . . . . . . . . . . . . . . . . . . . . . . . . . . . . . . Bothacking | -11 -10 -9 -9 -9 -8 -8 -8 -8 -8 -7 -7 -7 -7 -6 -6 -6 -6 -6 -6 -5 -5 -5 -5 -4 -4 -4 -4 -3 -3 -3 -2 -2 -1 ------------ Run | Yrd Mat Mat Min Exi Min Mat Gar Mat Gar Fac Gar Fac Gar Fac Was Fac Gar Fac Gar Fac Gar Fac Gar Fac Was Fac Gar Res Arm Lab Res Gar Acc Used RIF Installer 11 | . . . . . . . 1 . 1 . 1 . 1 . . . 1 . 1 . 1 . 1 . . . 1 . . . . 2 . Coupler Efficiency 1 | . . . . . . . . . . . . . . . . . . . . . . . . . . . 1 . . . . . . Hotswap 1 | . . . . . . . . . . . . . . . . . 1 . . . . . . . . . . . . . . . . Threat Obfuscator 1 | . . . . . . . . . . . . . . . . . . . . . . . . . . . . . . . . 1 . Signal Jammer 1 | . . . . . . . . . . . . . . . . . . . . . . . 1 . . . . . . . . . . Zone Cloak 2 | . . . . . . . . . . . 1 . . . . . . . . . 1 . . . . . . . . . . . . Watcher Feeds 1 | . . . . . . . . . . . . . . . . . . . 1 . . . . . . . . . . . . . . Patrol Navigation 1 | . . . . . . . . . . . . . 1 . . . . . . . . . . . . . . . . . . . . Alert ID Control 1 | . . . . . . . . . 1 . . . . . . . . . . . . . . . . . . . . . . . . Autooverride 1 | . . . . . . . . . . . . . . . . . . . . . . . . . . . . . . . . 1 . Robots Hacked 70 | . . . . . . . 1 2 3 . 4 . 1 3 6 . 7 . 2 2 1 7 . 2 6 6 2 2 . . 1 2 10 Non-combat 21 | . . . . . . . 1 2 . . . . . 1 . . . . . . . 4 . 2 . 4 . 2 . . 1 2 2 Combat 49 | . . . . . . . . . 3 . 4 . 1 2 6 . 7 . 2 2 1 3 . . 6 2 2 . . . . . 8 Robot Hacks Applied 74 | . . . . . . . 1 2 3 . 4 . 1 3 6 . 8 . 2 2 1 7 . 2 6 7 2 3 . . 1 2 11 parse_system 3 | . . . . . . . . . . . . . . . . . . . . . . . . . . 2 . . . . . . 1 no_distress 6 | . . . . . . . . . . . . . . . . . . . . . . . . 1 . 2 . 2 . . 1 . . find_chute 2 | . . . . . . . . . . . . . . 1 . . . . . . . . . 1 . . . . . . . . . ignore_repairs 1 | . . . . . . . . . . . . . . . . . . . . . . . . . . . . . . . . . 1 map_walls 2 | . . . . . . . . 1 . . . . . . . . . . . . . 1 . . . . . . . . . . . drop_inventory 1 | . . . . . . . . . . . . . . . . . . . . . . 1 . . . . . . . . . . . ignore_parts 2 | . . . . . . . . . . . . . . . . . . . . . . 2 . . . . . . . . . . . map_route 1 | . . . . . . . . . . . . . . . . . . . . . . . . . . . . . . . . . 1 ignore_targets 12 | . . . . . . . . . . . . . . . 6 . . . . . . . . . 6 . . . . . . . . disrupt_area 1 | . . . . . . . . . . . . . . . . . 1 . . . . . . . . . . . . . . . . spike_heat 1 | . . . . . . . . . . . . . . . . . . . . . . . . . . . . . . . . . 1 amplify_resonance 18 | . . . . . . . . 1 3 . . . 1 . . . 4 . 1 . 1 2 . . . . . . . . . . 5 overwrite_iff 9 | . . . . . . . . . . . 1 . . 1 . . 3 . 1 2 . 1 . . . . . . . . . . . formatsys_low 5 | . . . . . . . 1 . . . . . . . . . . . . . . . . . . 1 . 1 . . . 2 . formatsys_high 10 | . . . . . . . . . . . 3 . . 1 . . . . . . . . . . . 2 2 . . . . . 2 Relay Couplers Released 119 | . . . . . . . 18 . 10 . 18 . 26 . . . 8 . . . 13 . 5 . . . 12 . . . . 7 2 Machine Destruction 113 | . . . . . . . 18 . 10 . 18 . 23 . . . 8 . . . 13 . 5 . . . 12 . . . . 4 2 Programmers 6 | . . . . . . . . . . . . . 3 . . . . . . . . . . . . . . . . . . 3 . Attached 22 | . . . . . . . 1 1 . . 3 . 2 2 1 . 2 . 1 . 2 1 . . 1 1 1 1 . . . . 2 Fabnet Peak Effective % . | . . . . . . . . . . . . . . . . . . . . . . . . . . . . . . . . . . Robots Rewired 17 | . . . . . . . 2 . . . 3 . . . . . 1 . . . 6 . . . . . 2 . . . . 2 1 Allies Hacked 1 | . . . . . . . . . . . . . . . . . . . . . . 1 . . . . . . . . . . . Hacks Repelled . | . . . . . . . . . . . . . . . . . . . . . . . . . . . . . . . . . . Allies | -11 -10 -9 -9 -9 -8 -8 -8 -8 -8 -7 -7 -7 -7 -6 -6 -6 -6 -6 -6 -5 -5 -5 -5 -4 -4 -4 -4 -3 -3 -3 -2 -2 -1 -------- Run | Yrd Mat Mat Min Exi Min Mat Gar Mat Gar Fac Gar Fac Gar Fac Was Fac Gar Fac Gar Fac Gar Fac Gar Fac Was Fac Gar Res Arm Lab Res Gar Acc Total Allies 50 | . . . . . . . 3 . . . 7 . 2 2 . . 4 . 1 2 6 1 . . . 6 6 1 . . . 6 3 Largest Group 6 | . . . . . . . 3 3 1 . 4 2 2 2 . . 2 1 1 1 6 2 . . . 4 2 1 1 . . 3 1 Highest-Rated Group 219 | . . . . . . . 60 60 23 . 68 39 142 131 . . 148 148 148 29 180 60 . . . 177 190 36 36 . . 151 219 Highest-Rated Ally 219 | . . . . . . . 23 23 23 . 32 32 80 90 . . 148 148 148 29 30 47 . . . 47 95 36 36 . . 80 219 Total Orders 33 | . . . . . . . 1 2 1 . . 4 . . . . . . . . . 2 . . . 2 . 7 . . . 12 2 STAY 10 | . . . . . . . . 1 1 . . 2 . . . . . . . . . 2 . . . . . 1 . . . 2 1 ROAM 1 | . . . . . . . . . . . . . . . . . . . . . . . . . . . . . . . . 1 . FOLLOW 4 | . . . . . . . . 1 . . . 2 . . . . . . . . . . . . . . . . . . . . 1 AID 18 | . . . . . . . 1 . . . . . . . . . . . . . . . . . . 2 . 6 . . . 9 . Ally Attacks 263 | . . . . . . . . 15 . . 27 8 42 9 . . 15 . 29 3 40 6 . . . 12 34 . . . . 20 3 Total Damage 8563 | . . . . . . . . 254 . . 472 116 1492 251 . . 154 . 723 57 1097 166 . . . 319 1182 . . . . 2139 141 Kills 53 | . . . . . . . . 3 . . 7 2 9 2 . . 1 . 3 . 10 1 . . . . 6 . . . . 8 1 Allies Corrupted 2 | . . . . . . . . . . . . . 1 . . . . . . . . . . . . . . . . . . . 1 Allies Melted 1 | . . . . . . . . . . . . . 1 . . . . . . . . . . . . . . . . . . . . Intel | -11 -10 -9 -9 -9 -8 -8 -8 -8 -8 -7 -7 -7 -7 -6 -6 -6 -6 -6 -6 -5 -5 -5 -5 -4 -4 -4 -4 -3 -3 -3 -2 -2 -1 ------- Run | Yrd Mat Mat Min Exi Min Mat Gar Mat Gar Fac Gar Fac Gar Fac Was Fac Gar Fac Gar Fac Gar Fac Gar Fac Was Fac Gar Res Arm Lab Res Gar Acc Active Infowar (turns) 10362 | 87 695 1527 39 1229 766 459 . . . . . . 632 1173 751 395 2 . . . 17 . . . . 1209 53 . 2 . . . 1326 Structural 5654 | . . . . . 735 459 . . . . . . . 725 751 395 2 . . . . . . . . 1209 53 . . . . . 1325 Traps 2 | . . . . . . . . . . . . . . . . . . . . . . . . . . . . . 2 . . . . Seismic 4582 | 87 695 1527 39 1229 766 239 . . . . . . . . . . . . . . . . . . . . . . . . . . . T.N.C. 1 | . . . . . . . . . . . . . . . . . . . . . 1 . . . . . . . . . . . . Machine Analysis 500 | . . . . . . . . . . . . . . . . . . . . . . . . . . . . . . . . . 500 Jamming 1290 | . . . . . . . . . . . . . 632 642 . . . . . . 16 . . . . . . . . . . . . Robot Analysis Total . | . . . . . . . . . . . . . . . . . . . . . . . . . . . . . . . . . . Derelict Logs Recovered . | . . . . . . . . . . . . . . . . . . . . . . . . . . . . . . . . . . Drone Launches . | . . . . . . . . . . . . . . . . . . . . . . . . . . . . . . . . . . Drone Recoveries . | . . . . . . . . . . . . . . . . . . . . . . . . . . . . . . . . . . Exploration | -11 -10 -9 -9 -9 -8 -8 -8 -8 -8 -7 -7 -7 -7 -6 -6 -6 -6 -6 -6 -5 -5 -5 -5 -4 -4 -4 -4 -3 -3 -3 -2 -2 -1 ------------- Run | Yrd Mat Mat Min Exi Min Mat Gar Mat Gar Fac Gar Fac Gar Fac Was Fac Gar Fac Gar Fac Gar Fac Gar Fac Was Fac Gar Res Arm Lab Res Gar Acc Turns Passed 35610 | 258 695 2227 39 1229 766 2193 1388 369 1369 1461 1529 668 1237 1470 751 395 1404 97 598 834 1515 1398 429 92 595 1328 2029 824 1452 16 177 1343 3435 Spaces Moved 14386 | 108 300 710 16 506 305 734 712 208 591 351 772 280 613 656 304 218 585 56 227 365 623 674 176 53 140 628 807 217 686 11 93 577 1084 Core 24 | 24 . . . . . . . . . . . . . . . . . . . . . . . . . . . . . . . . . Treads 9297 | 84 300 710 16 505 305 734 4 . . . . . 2 . . . 424 56 227 365 623 674 176 53 140 628 807 217 686 11 93 577 880 Legs 1 | . . . . 1 . . . . . . . . . . . . . . . . . . . . . . . . . . . . . Wheels 5064 | . . . . . . . 708 208 591 351 772 280 611 656 304 218 161 . . . . . . . . . . . . . . . 204 Hover . | . . . . . . . . . . . . . . . . . . . . . . . . . . . . . . . . . . Flight . | . . . . . . . . . . . . . . . . . . . . . . . . . . . . . . . . . . Fastest Speed 50 | 50 160 240 240 240 240 240 135 135 135 140 145 160 145 145 160 160 160 160 160 160 160 160 160 160 240 160 160 155 155 155 150 150 130 Average Speed 175 | 142 197 240 240 240 240 240 150 135 189 145 167 165 157 156 160 160 169 160 160 160 160 160 160 160 240 166 185 155 155 155 155 150 162 Slowest Speed 560 | 160 320 320 240 480 240 240 560 135 210 210 190 205 320 160 160 160 240 160 160 160 160 160 160 160 240 240 270 155 155 155 237 150 320 Overloaded Moves . | . . . . . . . . . . . . . . . . . . . . . . . . . . . . . . . . . . Propulsion Burnouts . | . . . . . . . . . . . . . . . . . . . . . . . . . . . . . . . . . . Robots Hopped . | . . . . . . . . . . . . . . . . . . . . . . . . . . . . . . . . . . Potential Cave-ins 14 | . . . . . . . . . . . . . . 4 . . . . . . . . . . . . 4 . . . . . 6 Cave-ins Triggered 2 | . . . . . . . . . . . . . . . . . . . . . . . . . . . 2 . . . . . . Exploration Rate (%) 44 | 5 77 69 6 90 85 72 74 21 77 14 77 10 93 21 99 11 59 4 37 14 70 27 30 1 86 28 92 9 48 5 7 58 36 Regions Visited 33 Branch Regions 5 Pre-discovered Areas 1 | . . . . 1 . . . . . . . . . . . . . . . . . . . . . . . . . . . . . Known Exits Taken 12 | . . 1 . . . 1 . 1 . 1 . 1 . . . 1 . 1 . 1 . 1 . . . 1 . 1 . . 1 . . Unknown Exits Taken 7 | 1 1 . 1 1 1 . . . . . . . . . . . . . . . . . . . . . . . 1 1 . . . Scrap Searched 1 | . . . . . 1 . . . . . . . . . . . . . . . . . . . . . . . . . . . . Spaces Dug 301 | . . 16 . . . 2 1 10 16 17 8 12 6 58 . 14 . . 1 19 1 26 2 . . 20 14 2 16 . . . 40 Terrain Destroyed 976 | . 1 30 . . 27 34 61 19 73 17 23 12 55 60 4 17 14 . 4 38 6 40 16 . 1 69 49 8 37 . . 12 249 Melee 142 | . . 6 . . . 2 1 . 9 17 8 12 6 38 . 7 . . 1 12 1 2 . . . 20 . . . . . . . Projectile 304 | . . . . . 1 1 . . . . . . . 22 4 10 5 . 3 10 5 38 16 . 1 20 48 7 28 . . 5 80 AOE 501 | . 1 24 . . 26 31 60 19 64 . 15 . 49 . . . 9 . . 16 . . . . . 28 . . 9 . . . 150 Terrain Rammed . | . . . . . . . . . . . . . . . . . . . . . . . . . . . . . . . . . . Walls Destroyed . | . . . . . . . . . . . . . . . . . . . . . . . . . . . . . . . . . . Machines Disabled . | . . . . . . . . . . . . . . . . . . . . . . . . . . . . . . . . . . Actions | -11 -10 -9 -9 -9 -8 -8 -8 -8 -8 -7 -7 -7 -7 -6 -6 -6 -6 -6 -6 -5 -5 -5 -5 -4 -4 -4 -4 -3 -3 -3 -2 -2 -1 --------- Run | Yrd Mat Mat Min Exi Min Mat Gar Mat Gar Fac Gar Fac Gar Fac Was Fac Gar Fac Gar Fac Gar Fac Gar Fac Was Fac Gar Res Arm Lab Res Gar Acc Total 21751 | 177 349 1005 17 519 326 978 949 264 744 1231 956 453 783 956 458 240 836 62 367 576 1028 926 280 60 311 789 1151 656 1000 10 121 940 2233 Wait 4051 | 46 9 120 . . 8 54 78 19 28 810 47 127 56 173 29 3 84 2 36 156 236 145 66 3 79 40 110 390 199 . 9 262 627 Move 14361 | 107 299 709 15 505 304 734 711 208 590 351 770 279 612 656 303 218 584 56 226 365 622 674 175 53 139 628 805 216 685 10 93 576 1083 Hop . | . . . . . . . . . . . . . . . . . . . . . . . . . . . . . . . . . . Pick Up 206 | 1 8 21 . 3 1 11 7 1 7 4 10 4 3 7 4 2 17 . 6 6 12 6 5 . 4 6 14 . 10 . 3 2 21 Fast Attach 116 | 7 . 2 . 4 1 8 1 . 1 6 2 2 3 1 . 1 2 . 5 . 7 3 . . 1 2 8 1 1 . 3 1 43 Attach 102 | . . 4 . . 1 4 6 . 4 . 2 . 2 5 . . 10 . 4 2 4 4 . . 2 7 3 2 3 . 1 1 31 Detach 16 | . . . . . . . . . . . . 1 1 1 . . 2 . 2 . 2 1 . . 1 . 2 . . . . . 3 Swap 431 | . 3 22 1 . 3 30 22 7 12 5 21 7 16 14 5 . 22 1 12 9 23 21 2 1 5 27 34 10 24 . 1 19 52 Drop 218 | . 1 11 1 7 . 22 4 . 3 8 11 9 6 4 9 2 9 . 10 5 21 7 1 . 2 10 21 1 11 . 6 2 14 Fire 1623 | 16 29 102 . . 6 108 39 27 45 11 33 6 34 45 88 5 57 3 34 18 48 59 29 2 48 41 147 36 67 . 4 77 359 Melee 431 | . . 14 . . 2 7 6 2 22 36 12 17 23 50 20 9 47 . 32 15 53 5 2 . 30 27 . . . . . . . Ram . | . . . . . . . . . . . . . . . . . . . . . . . . . . . . . . . . . . Kick . | . . . . . . . . . . . . . . . . . . . . . . . . . . . . . . . . . . Crush 4 | . . . . . . . . . . . . . . . . . . . . . . 1 . 1 . 1 . . . . 1 . . Escape Stasis 130 | . . . . . . . 16 . 32 . 48 . 27 . . . . . . . . . . . . . 7 . . . . . . Rewire 59 | . . . . . . . 59 . . . . . . . . . . . . . . . . . . . . . . . . . . Trap 3 | . . . . . . . . . . . . 1 . . . . 2 . . . . . . . . . . . . . . . . Miscellaneous . | . . . . . . . . . . . . . . . . . . . . . . . . . . . . . . . . . . Route ------- -11/Scrapyard -10/Materials (discovered 4 exits: *Mat x2 / [*Min x2]) -9/Materials (discovered 2 exits: *Mat / *Min) -9/Mines -9/Exiles -8/Mines -8/Materials (discovered 3 exits: *Fac x2 / Gar) -8/Garrison (discovered 3 exits: *Mat x3) -8/Materials -8/Garrison (discovered 3 exits: *Fac x3) -7/Factory -7/Garrison (discovered 4 exits: *Fac x4) -7/Factory (discovered 5 exits: Fac x4 / Gar) -7/Garrison (discovered 3 exits: *Fac x3) -6/Factory -6/Waste -6/Factory -6/Garrison (discovered 2 exits: *Fac x2) -6/Factory (discovered 2 exits: [*Low] / Gar) -6/Garrison -5/Factory -5/Garrison (discovered 2 exits: *Fac x2) -5/Factory -5/Garrison -4/Factory -4/Waste -4/Factory (discovered 4 exits: *Res / Upp x2 / Gar) -4/Garrison (discovered 3 exits: *Res x3) -3/Research (discovered 3 exits: *Arm / Qua x2) -3/Armory (discovered 2 exits: *Res / [*Lab]) -3/Lab -2/Research -2/Garrison -1/Access To Epsilon Eridani History --------- Turn | Location | Event 4 | -11/Scrapyard | Discovered new exit (range 16) 259 | -11/Scrapyard | Entered Materials 260 | -10/Materials | Met a group of wandering Federalists 317 | -10/Materials | Build established: Mutant 514 | -10/Materials | Discovered new exit (range 16) 593 | -10/Materials | Discovered new exit (range 16) 593 | -10/Materials | Discovered new exit (range 15) 820 | -10/Materials | Discovered new exit (range 9) 954 | -10/Materials | Entered another Materials area 954 | -9/Materials | Evolved 2 slots: Propulsion x1, Utility x1 1450 | -9/Materials | Discovered new exit (range 16) 1922 | -9/Materials | Discovered new exit (range 13) 2109 | -9/Materials | Build established: Scavenger-Mutant 3095 | -9/Materials | Identified exit to Mines 3181 | -9/Materials | Entered Mines 3208 | -9/Mines | Deemed a non-threat by the Exiles lab entrance 3208 | -9/Mines | Discovered new exit (range 5) 3220 | -9/Mines | Entered Exiles 3280 | -9/Exiles | Met 8R-AWN 3319 | -9/Exiles | Met EX-HEX 3427 | -9/Exiles | Met EX-DEC 3478 | -9/Exiles | Visited The Gauntlet 3756 | -9/Exiles | Learned location of Zion (-7) 3801 | -9/Exiles | Met EX-BIN 3835 | -9/Exiles | Aligned with FarCom system 3837 | -9/Exiles | Given EX-Vault access code 3895 | -9/Exiles | Opened EX-Vault 3911 | -9/Exiles | Found Potential Leg 3916 | -9/Exiles | Found Potential Leg 3939 | -9/Exiles | Found Deploy-a-Sentry 3943 | -9/Exiles | Found Deploy-a-Sentry 3946 | -9/Exiles | Found Deploy-a-Sentry 3993 | -9/Exiles | Warned to stay clear of 0b10 Research branches 4425 | -9/Exiles | Discovered new exit (range 11) 4449 | -9/Exiles | Left Exiles lab with Deploy-a-Sentry 4449 | -9/Exiles | Entered Mines 5193 | -8/Mines | Discovered new exit (range 9) 5215 | -8/Mines | Entered Materials 5215 | -8/Materials | Evolved 2 slots: Utility x2 6040 | -8/Materials | Discovered new exit (range 10) 6788 | -8/Materials | Discovered new exit (range 12) 6807 | -8/Materials | Garrison activated, responded to threat 7149 | -8/Materials | Garrison activated, responded to threat 7299 | -8/Materials | Garrison activated, responded to threat 7408 | -8/Materials | Identified exit to Garrison 7408 | -8/Materials | Entered Garrison 7462 | -8/Garrison | Triggered checkpoint 7540 | -8/Garrison | Destroyed 14 combat bots 7585 | -8/Garrison | Warlord forces raided the area 7658 | -8/Garrison | Discovered new exit (range 10) 7732 | -8/Garrison | Triggered checkpoint 7768 | -8/Garrison | Garrison Relay disabled 7868 | -8/Garrison | Triggered checkpoint 7900 | -8/Garrison | Triggered checkpoint 7900 | -8/Garrison | Triggered checkpoint 7980 | -8/Garrison | Discovered new exit (range 9) 7988 | -8/Garrison | Triggered checkpoint 8146 | -8/Garrison | Discovered new exit (range 65) 8146 | -8/Garrison | Discovered new exit (range 64) 8146 | -8/Garrison | Discovered new exit (range 26) 8206 | -8/Garrison | Installed Relay Interface Framework 8337 | -8/Garrison | Garrison Relay disabled 8338 | -8/Garrison | Core integrity fell below 50% 8377 | -8/Garrison | Lost 4 parts (1p1n1u1w) 8397 | -8/Garrison | Garrison Relay disabled 8411 | -8/Garrison | Garrison Relay disabled 8705 | -8/Garrison | Build established: Bothacker-Mutant 8796 | -8/Garrison | Entered Materials 8796 | -8/Materials | Accompanied by 3 allies 9165 | -8/Materials | Identified exit to Garrison 9165 | -8/Materials | Entered Garrison 9165 | -8/Garrison | Accompanied by 1 ally 9215 | -8/Garrison | Triggered checkpoint 9236 | -8/Garrison | Learned Factory security intel 9250 | -8/Garrison | Garrison Relay disabled 9357 | -8/Garrison | Triggered checkpoint 9523 | -8/Garrison | Core integrity fell below 20% 9526 | -8/Garrison | Destroyed 7 combat bots 9556 | -8/Garrison | Lost 4 parts (2n2w) 9654 | -8/Garrison | Discovered new exit (range 15) 9822 | -8/Garrison | Triggered checkpoint 9867 | -8/Garrison | Garrison Relay disabled 10106 | -8/Garrison | Discovered new exit (range 10) 10151 | -8/Garrison | Build established: Mutant 10357 | -8/Garrison | Triggered checkpoint 10422 | -8/Garrison | Discovered new exit (range 11) 10451 | -8/Garrison | Expanded RIF knowledge: Alert ID Control 10534 | -8/Garrison | Entered Factory 10534 | -7/Factory | Evolved 2 slots: Propulsion x1, Weapon x1 10875 | -7/Factory | Repaired Imp. Medium Armor Plating 11490 | -7/Factory | Build established: Scavenger-Mutant 11793 | -7/Factory | Build established: Bothacker-Mutant 11995 | -7/Factory | Identified exit to Garrison 11995 | -7/Factory | Entered Garrison 12015 | -7/Garrison | Triggered checkpoint 12111 | -7/Garrison | Triggered checkpoint 12125 | -7/Garrison | Garrison Relay disabled 12216 | -7/Garrison | Triggered checkpoint 12227 | -7/Garrison | Triggered checkpoint 12227 | -7/Garrison | Triggered checkpoint 12318 | -7/Garrison | Triggered checkpoint 12415 | -7/Garrison | Triggered checkpoint 12427 | -7/Garrison | Discovered new exit (range 6) 12558 | -7/Garrison | Triggered checkpoint 12631 | -7/Garrison | Triggered checkpoint 12638 | -7/Garrison | Discovered new exit (range 15) 12748 | -7/Garrison | Triggered checkpoint 12769 | -7/Garrison | Garrison Relay disabled 13060 | -7/Garrison | Discovered new exit (range 14) 13103 | -7/Garrison | Expanded RIF knowledge: Zone Cloak 13261 | -7/Garrison | Triggered checkpoint 13290 | -7/Garrison | Garrison Relay disabled 13493 | -7/Garrison | Discovered new exit (range 8) 13524 | -7/Garrison | Entered Factory 13524 | -7/Factory | Accompanied by 2 allies 13573 | -7/Factory | Identified exit to Factory 14187 | -7/Factory | Identified exit to Garrison 14192 | -7/Factory | Entered Garrison 14192 | -7/Garrison | Accompanied by 1 ally 14260 | -7/Garrison | Expanded RIF knowledge: Patrol Navigation 14362 | -7/Garrison | Garrison Relay disabled 14394 | -7/Garrison | Found embedded Infiltrators 14473 | -7/Garrison | Triggered checkpoint 14512 | -7/Garrison | Triggered checkpoint 14527 | -7/Garrison | Triggered checkpoint 14546 | -7/Garrison | Triggered checkpoint 14554 | -7/Garrison | Destroyed 7 combat bots 14706 | -7/Garrison | Triggered checkpoint 14754 | -7/Garrison | Discovered exit to Factory (range 10) 14830 | -7/Garrison | Garrison Relay disabled 14985 | -7/Garrison | Discovered exit to Factory (range 10) 15012 | -7/Garrison | Triggered checkpoint 15056 | -7/Garrison | Garrison Relay disabled 15209 | -7/Garrison | Discovered exit to Factory (range 10) 15310 | -7/Garrison | Triggered checkpoint 15331 | -7/Garrison | Garrison Relay disabled 15368 | -7/Garrison | Garrison Relay disabled 15429 | -7/Garrison | Entered Factory 15429 | -6/Factory | Evolved 2 slots: Utility x1, Weapon x1 15722 | -6/Factory | Build established: Bothacker-Gunner 16887 | -6/Factory | Discovered new exit (range 15) 16899 | -6/Factory | Sucked down chute 16899 | -6/Factory | Entered Waste 16935 | -6/Waste | Spotted C-40 Crusher 16939 | -6/Waste | Spotted C-40 Crusher 16970 | -6/Waste | Spotted C-40 Crusher 16978 | -6/Waste | Spotted C-40 Crusher 16996 | -6/Waste | Spotted C-40 Crusher 16996 | -6/Waste | Destroyed C-40 Crusher 17008 | -6/Waste | Found Unknown Protection 17040 | -6/Waste | Destroyed C-40 Crusher 17042 | -6/Waste | Spotted C-40 Crusher 17108 | -6/Waste | Discovered new exit (range 16) 17234 | -6/Waste | Destroyed C-40 Crusher 17398 | -6/Waste | Destroyed C-40 Crusher 17440 | -6/Waste | Destroyed C-40 Crusher 17517 | -6/Waste | Destroyed C-40 Crusher 17650 | -6/Waste | Entered Factory 18045 | -6/Factory | Identified exit to Garrison 18045 | -6/Factory | Entered Garrison 18197 | -6/Garrison | Triggered checkpoint 18239 | -6/Garrison | Garrison Relay disabled 18337 | -6/Garrison | Triggered checkpoint 18395 | -6/Garrison | Spotted B-75 Beast 18465 | -6/Garrison | Destroyed B-75 Beast 18474 | -6/Garrison | Triggered checkpoint 18501 | -6/Garrison | Lost 8 parts (2p2n2u2w) 18526 | -6/Garrison | Destroyed 7 combat bots 18596 | -6/Garrison | Triggered checkpoint 18750 | -6/Garrison | Discovered new exit (range 10) 18878 | -6/Garrison | Spotted B-90 Cyclops 18958 | -6/Garrison | Destroyed B-90 Cyclops 19094 | -6/Garrison | Rewired B-90 Cyclops 19316 | -6/Garrison | Garrison Relay disabled 19364 | -6/Garrison | Discovered new exit (range 15) 19401 | -6/Garrison | Expanded RIF knowledge: Hotswap 19419 | -6/Garrison | Build established: Scavenger-Gunner 19449 | -6/Garrison | Entered Factory 19449 | -6/Factory | Accompanied by 1 ally 19476 | -6/Factory | Discovered new exit (range 16) 19544 | -6/Factory | Identified exit to Garrison 19546 | -6/Factory | Entered Garrison 19546 | -6/Garrison | Accompanied by 1 ally 19680 | -6/Garrison | Triggered checkpoint 19858 | -6/Garrison | Discovered new exit (range 14) 19904 | -6/Garrison | Expanded RIF knowledge: Watcher Feeds 20144 | -6/Garrison | Entered Factory 20144 | -5/Factory | Evolved 2 slots: Power x1, Utility x1 20882 | -5/Factory | Garrison activated, responded to threat 20978 | -5/Factory | Identified exit to Garrison 20978 | -5/Factory | Entered Garrison 21104 | -5/Garrison | Triggered checkpoint 21142 | -5/Garrison | Garrison Relay disabled 21338 | -5/Garrison | Triggered checkpoint 21429 | -5/Garrison | Destroyed 7 combat bots 21430 | -5/Garrison | Spotted B-75 Beast 21451 | -5/Garrison | Destroyed B-75 Beast 21474 | -5/Garrison | Triggered checkpoint 21552 | -5/Garrison | Triggered checkpoint 21592 | -5/Garrison | Garrison Relay disabled 21644 | -5/Garrison | Discovered new exit (range 15) 21794 | -5/Garrison | Triggered checkpoint 21916 | -5/Garrison | Garrison Relay disabled 21993 | -5/Garrison | Triggered checkpoint 22050 | -5/Garrison | Triggered checkpoint 22096 | -5/Garrison | Triggered checkpoint 22346 | -5/Garrison | Discovered new exit (range 15) 22439 | -5/Garrison | Expanded RIF knowledge: Zone Cloak 22493 | -5/Garrison | Entered Factory 22493 | -5/Factory | Accompanied by 2 allies 22793 | -5/Factory | First assault squad dispatched 23702 | -5/Factory | Lost 3 parts (1p1u1w) 23877 | -5/Factory | Identified exit to Garrison 23891 | -5/Factory | Entered Garrison 23929 | -5/Garrison | Triggered checkpoint 23981 | -5/Garrison | Expanded RIF knowledge: Signal Jamming 24009 | -5/Garrison | Garrison Relay disabled 24134 | -5/Garrison | Triggered checkpoint 24307 | -5/Garrison | Discovered new exit (range 8) 24320 | -5/Garrison | Entered Factory 24320 | -4/Factory | Evolved 2 slots: Utility x2 24412 | -4/Factory | Sucked down chute 24412 | -4/Factory | Entered Waste 24421 | -4/Waste | Identified Damper Plating 24427 | -4/Waste | EMP discharged 24455 | -4/Waste | Spotted C-40 Crusher 24459 | -4/Waste | Spotted C-40 Crusher 24463 | -4/Waste | Spotted C-40 Crusher 24470 | -4/Waste | Spotted C-40 Crusher 24474 | -4/Waste | Spotted C-40 Crusher 24482 | -4/Waste | Spotted C-40 Crusher 24485 | -4/Waste | Build established: Bothacker-Gunner 24527 | -4/Waste | EMP discharged 24627 | -4/Waste | EMP discharged 24716 | -4/Waste | Destroyed C-40 Crusher 24727 | -4/Waste | EMP discharged 24814 | -4/Waste | Destroyed C-40 Crusher 24827 | -4/Waste | EMP discharged 24832 | -4/Waste | Destroyed C-40 Crusher 24927 | -4/Waste | EMP discharged 24973 | -4/Waste | Discovered new exit (range 12) 25007 | -4/Waste | Entered Factory 25318 | -4/Factory | Build established: Bothacker-Tank 25445 | -4/Factory | Found Prototype Processor 25445 | -4/Factory | Identified Exp. Targeting Computer 25477 | -4/Factory | Lost 6 allies 25656 | -4/Factory | Discovered new exit (range 7) 25734 | -4/Factory | Build established: Scavenger-Tank 25795 | -4/Factory | Identified exit to Upper Caves 26335 | -4/Factory | Identified exit to Garrison 26335 | -4/Factory | Entered Garrison 26411 | -4/Garrison | Triggered checkpoint 26635 | -4/Garrison | Spotted B-86 Titan 26645 | -4/Garrison | Destroyed B-86 Titan 26693 | -4/Garrison | Triggered checkpoint 26736 | -4/Garrison | Triggered checkpoint 26967 | -4/Garrison | Triggered checkpoint 26978 | -4/Garrison | Garrison Relay disabled 27077 | -4/Garrison | Discovered new exit (range 15) 27173 | -4/Garrison | Found Gamma Bomb Array 27176 | -4/Garrison | Found Gamma Bomb Array 27244 | -4/Garrison | System corruption reached 10% 27529 | -4/Garrison | Triggered checkpoint 27661 | -4/Garrison | Spotted B-86 Titan 27676 | -4/Garrison | Discovered new exit (range 11) 27715 | -4/Garrison | Crushed by falling debris 27719 | -4/Garrison | Crushed by falling debris 27835 | -4/Garrison | Triggered checkpoint 27839 | -4/Garrison | Garrison Relay disabled 28117 | -4/Garrison | Discovered new exit (range 8) 28121 | -4/Garrison | Found embedded Infiltrators 28129 | -4/Garrison | Triggered checkpoint 28168 | -4/Garrison | Expanded RIF knowledge: Coupler Efficiency 28196 | -4/Garrison | Garrison Relay disabled 28339 | -4/Garrison | Destroyed 13 combat bots 28364 | -4/Garrison | Entered Research 28364 | -3/Research | Evolved 2 slots: Propulsion x2 28400 | -3/Research | Identified exit to Armory 28400 | -3/Research | Identified exit to Quarantine 28519 | -3/Research | Build established: Botlord-Tank 28614 | -3/Research | First assault squad dispatched 29188 | -3/Research | Entered Armory 29188 | -3/Armory | Accompanied by 1 ally 29209 | -3/Armory | Found Unknown Launcher 29209 | -3/Armory | Identified Fusion Bomb Launcher 29980 | -3/Armory | Discovered new exit (range 24) 30357 | -3/Armory | Found Gamma Bomb Array 30532 | -3/Armory | Build established: Botlord-Gunner 30572 | -3/Armory | Discovered new exit (range 4) 30640 | -3/Armory | Entered Lab 30640 | -3/Lab | Discovered new exit (range 9) 30656 | -3/Lab | Entered Research 30656 | -2/Research | Evolved 2 slots: Utility x2 30833 | -2/Research | Identified exit to Garrison 30833 | -2/Research | Entered Garrison 30856 | -2/Garrison | Triggered checkpoint 30885 | -2/Garrison | Destroyed 8 combat bots 30959 | -2/Garrison | Build established: Botlord-Tank 31080 | -2/Garrison | Spotted B-90 Cyclops 31087 | -2/Garrison | Triggered checkpoint 31087 | -2/Garrison | Triggered checkpoint 31089 | -2/Garrison | Destroyed B-90 Cyclops 31157 | -2/Garrison | Triggered checkpoint 31271 | -2/Garrison | Triggered checkpoint 31314 | -2/Garrison | Destroyed 11 combat bots 31373 | -2/Garrison | Found embedded Infiltrators 31377 | -2/Garrison | Triggered checkpoint 31453 | -2/Garrison | Expanded RIF knowledge: Threat Obfuscation 31475 | -2/Garrison | Garrison Relay disabled 31519 | -2/Garrison | Discovered new exit (range 12) 31625 | -2/Garrison | Triggered checkpoint 31683 | -2/Garrison | Expanded RIF knowledge: Autooverride 32176 | -2/Garrison | Entered Access 32176 | -1/Access | Accompanied by 1 ally 32176 | -1/Access | Evolved 2 slots: Power x1, Utility x1 32426 | -1/Access | First assault squad dispatched 32529 | -1/Access | Garrison activated, responded to threat 32572 | -1/Access | Destroyed 7 combat bots 33444 | -1/Access | Spotted B-99 Colossus 33445 | -1/Access | Assimilated Colossus 10a with formatsys_high 33556 | -1/Access | P-80 Master assimilated allied Colossus 10a 33614 | -1/Access | Destroyed Colossus 10a 33621 | -1/Access | Lost 3 parts (1n1u1w) 33628 | -1/Access | Found Prototype Ballistic Gun 33628 | -1/Access | Identified Multirail 33633 | -1/Access | Found Multirail 34007 | -1/Access | System corruption reached 10% 34062 | -1/Access | Destroyed 19 combat bots 34069 | -1/Access | Lost 9 parts (3p1n3u2w) 34114 | -1/Access | Build established: Botlord-Gunner 34164 | -1/Access | Destroyed 7 combat bots 34193 | -1/Access | Lost 17 parts (2p3n7u5w) 34624 | -1/Access | System corruption reached 30% 34658 | -1/Access | Build established: Botlord-Tank 34661 | -1/Access | Lost 5 parts (3n2u) 34720 | -1/Access | Door terminal overloaded 34728 | -1/Access | Core integrity fell below 50% 34776 | -1/Access | Lost 3 parts (1u2w) 34978 | -1/Access | Discovered new exit (range 6) 35271 | -1/Access | Lost 5 parts (1p1n1u2w) 35277 | -1/Access | Destroyed 10 combat bots 35478 | -1/Access | Lost 5 parts (2p1n2u) 35611 | *** | Escaped! Last Messages --------------- Energy Gun. 35579_ Myomer Leg destroyed. 35585_ Jacked G-73 Enforcer... >>amplify_resonance Amplifying resonance, compromised power stability. 35586_ System corrupted: Enh. Armored Heavy Treads rejected. 35586_ G-73 Enforcer Lgt. Quantum Reactor critical resonance detonation. 35586_ G-73 Enforcer destroyed. 35586_ Acquired Enh. Armored Heavy Treads. 35587_ Jacked G-73 Enforcer... >>formatsys_high 35587_ Relay Coupler [Grunt] hotswapped in. Rerouting network defenses. Erasing system data. Installing primary routines, ETC: 6. 35588_ Reactivated Enforcer 10a. 35601_ System corrupted: Heat flow error (+234). Map ----- +----------------------------------------------------+ | ###### # " ?????????????????? ? # | | ############ # ##??????????????? # | | # # ##??????????????? ? # | | ?? # # ##??????????????? # | | ??? # # ? ???????????????""" # | | ???"""" # ?? ??????????????""" # | | ?"""""""" #############??????????????""" # | | """""""" / ###########?###?????????"" ! # | | """"" # # ##??## ## ##???????? ??? | | ### #### # | | = ####### # #####"###### | | %% %%%! ! ! != *%= | | %% [% ! * ! % | | = [ % # ##" % "### | | ########### % % [ % ##### ==%! | | # [ #?## /* | | / #### ######?## [! | | = # ##?#### ##?????### | | = " # ##???## ""##?????##### | | """ # ##??### ""##??????#### | | """ # ##??## #????????## | | " # ##??### ##????????## | | # ##??### ##????????## | | # ##???## g ##????????## | | # ##???## #????????### | | ##########"# ##???## @" #????????### | | ############ ##???## "" #????????########## | | ! # ##???## #????????## ####### | | #|%##????# #????????## ##????? | | ] =*# =###???# ########### #####?? | | =/%# !###???#""""""""""###########"#####?? | | "" ==[=%[###???????????????## ##?? | | """ = ="=!###???????????????## ##?? | | "T *[%*%###???????????????## "" ##?? | | "" !#%###???????????????## """" ##?? | | "" ##*###?????BB????BB??## """" ##?? | | "" ##%###?????BB ?BB??## """" ##?? | | ## ##???????? ???## """" ##?? | | ## ##???????? ???## """" ##?? | | ############# ##???????? ???## "" ##?? | | ############# ##?????? ??## "" ##?? | | ???#######"## ###?????## ##??## ##?? | | ####????## ###### = ##?? | | ???##########""####???## ############+#######?? | | ???########### ####??## ######?? | | ???????????##### ####?## ######## | | ????????????##### ###### ######## | | ????????????######"##### """""""" # = | | ????????????## # """""""" # | | ????????????## # """""""" # | +----------------------------------------------------+ Best States ------------- Heat Dissipation 117 Coolant Potential 100 Energy Generation 77 Energy Capacity 690 Matter Stores 419 Matter Capacity 550 Sight Range 16 Terrain Scan Density 10 Jamming Range 12 Power Amplification 30 Armor Coverage 3200 Resistance: EM 90 Utility Shielding 66 Weapon Cycling 25 Melee Speed Boost 20 Phase Shifting 15 Evasion (%) 55 Targeting Accuracy 20 Target Analysis 8 Core Analysis 6 Armor Integrity Analysis 40 Recoil Reduction 6 Offensive Hacking 12 Defensive Hacking 10 Relay Coupler Types 2 Relay Coupler Value 50 Item Schematics ----------------- None Robot Schematics ------------------ None Fabricated ------------ Nothing Repaired ---------- Imp. Medium Armor Plating | 5% | -7/Factory Alien Tech Used ----------------- None Achievements -------------- None Challenges ------------ None Game ------ Seed ImprovedLargeCutter Manual? 0 Play Time 04:59:18 Cumulative 471.3 hours Start 2025.07.25 @ 13:47:41 End 2025.08.12 @ 02:01:34 Sessions 15 Manual Loads 0 Difficulty Rogue Special Mode None Game No. 204 Rogue 121 Adventurer 32 Explorer 51 Win Type 0 Total 53 Types 27/6/9/1/0/2/5/1/1/1 Lore% 95 Gallery% 91 Achievement% 85 Wizard Run 0 Options --------- Layout 2 ASCII 0 Keyboard 0 Movement Mouse Keybinds 1 Fullscreen 1 Font 32/Tamsyn Map View 50x44 Zoom Use 0% Tactical HUD 1 Map Filters NONE Filters NONE Steam 1 RUN: 32b975c9-5c22-48ac-baf9-41eed7deac65